{"text_format":"1","workbook":"xlsx","n_sheets":4,"sheets":["Match","Adresses","Ecussons","Classification"],"not_rendered":{"charts":0,"images":33,"macros":1,"external_links":3,"defined_names":70,"comments":1,"pivot_tables":0},"unopened":[],"bounds":{"document_bytes":16777216,"sheet_cells":100000,"rows_first":2000,"rows_last":500,"rows_between":2000,"halvings":0,"cell_chars":16384,"cell_head_chars":4096},"cells_cut":0,"cells_raw":0,"read":"whole","date_system":"1900"}

{"sheet":"Match","index":0,"n_rows":32,"n_cols":24,"rows_kept":32,"cut":false,"hidden":false,"merged":[[28,1,29,4],[28,5,29,8],[28,9,29,14],[31,1,33,1],[31,2,33,14],[21,10,22,10],[21,14,22,14],[23,1,24,1],[23,2,24,2],[23,3,24,4],[23,8,24,8],[23,9,24,9],[23,10,24,11],[21,9,22,9],[21,2,22,2],[21,3,22,3],[21,7,22,7],[19,14,20,14],[17,2,18,2],[17,3,18,3],[17,7,18,7],[17,9,18,9],[19,2,20,2],[19,3,20,3],[19,7,20,7],[19,9,20,9],[19,10,20,10],[12,8,13,14],[12,1,13,7],[17,10,18,10],[17,14,18,14],[14,1,15,6],[14,8,15,13],[14,7,15,7],[14,14,15,14],[10,1,11,7],[10,8,11,14],[2,1,8,1],[5,2,5,3],[7,3,7,5],[8,3,8,5],[8,9,8,14]]}
[]
[]
[13236,null,{"$f":"IF(A3=\"\",\"\",IF(VLOOKUP(A3,CLUB,3,FALSE)=0,\"\",VLOOKUP(A3,CLUB,3,FALSE)))","v":"BILLARD Français VILLENEUVE D'ASCQ"},null,null,null,null,null,null,null,null,null,null,null,null,null,0,"<=MAJ macro",1]
[null,null,{"$f":"IF(A3=\"\",\"\",IF(VLOOKUP(A3,CLUB,4,FALSE)=0,\"\",VLOOKUP(A3,CLUB,4,FALSE)))","v":""}]
[null,null,{"$f":"IF(A3=\"\",\"\",IF(VLOOKUP(A3,CLUB,5,FALSE)=0,\"\",VLOOKUP(A3,CLUB,5,FALSE)))","v":"3 rue jean vilar"}]
[null,null,{"$f":"IF(A3=\"\",\"\",VLOOKUP(A3,CLUB,6,FALSE))","v":59650},null,{"$f":"IF(A3=\"\",\"\",VLOOKUP(A3,CLUB,7,FALSE))","v":"VILLENEUVE D'ASCQ"}]
[]
[null,null,{"$f":"IF(D8=\"\",\"\",\"(\")","v":"("},{"$f":"IF(A3=\"\",\"\",VLOOKUP(A3,CLUB,8,FALSE))","v":320055726}]
[null,null,{"$f":"IF(D9=\"\",\"\",\":\")","v":""},{"$f":"IF(A3=\"\",\"\",IF(VLOOKUP(A3,CLUB,9,FALSE)=0,\"\",VLOOKUP(A3,CLUB,9,FALSE)))","v":""},null,null,null,null,"Date :"]
[]
[]
[]
[null,"CLUB VISITE",null,null,null,null,null,null,"CLUB VISITEUR"]
[]
[]
[]
[null,"NOM PRENOM                   N° LICENCE","CAT.","Pts à réaliser","Pts réalisés","Reprise","Moyenne","Série ","NOM PRENOM                   N° LICENCE","CAT.","Pts à réaliser","Pts réaliser","Reprise","Moyenne","Série ",null,null,null,null,null,{"$f":"IF(RIGHT(I11,1)=\"6\",3,IF(RIGHT(I11,1)=\"7\",2,0))","v":0},null,"Reprises","Rep adv;"]
[null,{"$f":"IF(Classification!A1=\"\",\"\",VLOOKUP(Classification!A1,Classification!$A$3:$AD$548,3,FALSE)&\" \"&VLOOKUP(Classification!A1,Classification!$A$3:$AD$548,4,FALSE))","v":""},{"$f":"IF(Classification!A1=\"\",\"\",VLOOKUP(Classification!A1,Classification!$A$3:$AD$548,8,FALSE))","v":""},{"$f":"IF(I11=\"\",\"\",INDEX(Points,U18,$U$17))","v":""},{"$f":"IF(E19=\"\",\"\",E19)","v":""},{"$f":"IF(AA18=\"\",\"\",AA18+W18)","v":""},{"$f":"IF(OR(E18=\"\",F18=\"\"),\"\",E18/F18)","v":""},null,{"$f":"IF(Classification!B1=\"\",\"\",VLOOKUP(Classification!B1,Classification!$A$3:$AD$548,3,FALSE)&\" \"&VLOOKUP(Classification!B1,Classification!$A$3:$AD$548,4,FALSE))","v":""},{"$f":"IF(Classification!B1=\"\",\"\",VLOOKUP(Classification!B1,Classification!$A$3:$AD$548,8,FALSE))","v":""},{"$f":"D18","v":""},{"$f":"IF(L19=\"\",\"\",L19)","v":""},{"$f":"IF(OR(AND(E19=P18,L19=P18),AND(L19<P18,E19<P18),AA18=\"\"),\"\",AA18+X18)","v":""},{"$f":"IF(OR(L18=\"\",M18=\"\"),\"\",L18/M18)","v":""},null,{"$f":"D18","v":""},null,null,30,40,1,null,{"$f":"IF(AND(S3=1,L19=P18),-1)","v":-1},{"$f":"IF(AND(S3=0,E19=P18),-1)","v":false}]
[null,{"$f":"IF(Classification!A1=\"\",\"\",VLOOKUP(Classification!A1,Classification!$A$3:$AD$548,6,FALSE))","v":""},null,null,null,{"$f":"F18","v":""},"",null,{"$f":"IF(Classification!B1=\"\",\"\",VLOOKUP(Classification!B1,Classification!$A$3:$AD$548,6,FALSE))","v":""},null,null,null,{"$f":"M18","v":""},"",null,null,null,null,null,null,2]
[null,{"$f":"IF(Classification!C1=\"\",\"\",VLOOKUP(Classification!C1,Classification!$A$3:$AD$548,3,FALSE)&\" \"&VLOOKUP(Classification!C1,Classification!$A$3:$AD$548,4,FALSE))","v":""},{"$f":"IF(Classification!C1=\"\",\"\",VLOOKUP(Classification!C1,Classification!$A$3:$AD$548,8,FALSE))","v":""},{"$f":"IF(I11=\"\",\"\",INDEX(Points,U20,$U$17))","v":""},{"$f":"IF(E21=\"\",\"\",E21-E19)","v":""},{"$f":"IF(AA20=\"\",\"\",AA20+W20-F19)","v":""},"",null,{"$f":"IF(Classification!D1=\"\",\"\",VLOOKUP(Classification!D1,Classification!$A$3:$AD$548,3,FALSE)&\" \"&VLOOKUP(Classification!D1,Classification!$A$3:$AD$548,4,FALSE))","v":""},{"$f":"IF(Classification!D1=\"\",\"\",VLOOKUP(Classification!D1,Classification!$A$3:$AD$548,8,FALSE))","v":""},{"$f":"D20","v":""},{"$f":"IF(L21=\"\",\"\",L21-L19)","v":""},{"$f":"IF(OR(AND(E21=P20,L21=P20),AND(L21<P20,E21<P20),AA20=\"\"),\"\",AA20+X20-M19)","v":""},"",null,{"$f":"IF(I11=\"\",\"\",D18+D20)","v":""},null,null,50,60,3,null,{"$f":"IF(I11=\"\",\"\",IF(OR(AND(S3=0,E19=P18),AND(E19=P18,E21=P20)),1,IF(AND(S3=1,L19=P18,L21=P20),-1)))","v":""},{"$f":"IF(I11=\"\",\"\",IF(AND(S3=0,E19=P18,E21=P20),-1,IF(OR(AND(S3=1,L19=P18),AND(L21=P20,L19=P18)),1)))","v":""}]
[null,{"$f":"IF(Classification!C1=\"\",\"\",VLOOKUP(Classification!C1,Classification!$A$3:$AD$548,6,FALSE))","v":""},null,null,null,{"$f":"IF(AA20=\"\",\"\",IF(S3=0,AA20,IF(AND(S3=1,E21=P20),AA20,AA20-1)))","v":""},"",null,{"$f":"IF(Classification!D1=\"\",\"\",VLOOKUP(Classification!D1,Classification!$A$3:$AD$548,6,FALSE))","v":""},null,null,null,{"$f":"IF(AA20=\"\",\"\",IF(S3=1,AA20,IF(AND(S3=0,L21=P20),AA20,AA20-1)))","v":""},"",null,null,null,null,null,null,4]
[null,{"$f":"IF(Classification!E1=\"\",\"\",VLOOKUP(Classification!E1,Classification!$A$3:$AD$548,3,FALSE)&\" \"&VLOOKUP(Classification!E1,Classification!$A$3:$AD$548,4,FALSE))","v":""},{"$f":"IF(Classification!E1=\"\",\"\",VLOOKUP(Classification!E1,Classification!$A$3:$AD$548,8,FALSE))","v":""},{"$f":"IF(I11=\"\",\"\",INDEX(Points,U22,$U$17))","v":""},{"$f":"IF(E23=\"\",\"\",E23-E21)","v":""},{"$f":"IF(AA22=\"\",\"\",AA22-F21+W22)","v":""},"",null,{"$f":"IF(Classification!F1=\"\",\"\",VLOOKUP(Classification!F1,Classification!$A$3:$AD$548,3,FALSE)&\" \"&VLOOKUP(Classification!F1,Classification!$A$3:$AD$548,4,FALSE))","v":""},{"$f":"IF(Classification!F1=\"\",\"\",VLOOKUP(Classification!F1,Classification!$A$3:$AD$548,8,FALSE))","v":""},{"$f":"D22","v":""},{"$f":"IF(L23=\"\",\"\",L23-L21)","v":""},{"$f":"IF(OR(AND(E23<P22,L23<P22),AA22=\"\"),\"\",AA22-M21+X22)","v":""},"",null,{"$f":"IF(I11=\"\",\"\",D18+D20+D22)","v":""},null,null,70,80,5,null,{"$f":"IF(OR(AND(S3=1,E21=P20,E23<P22),AND(S3=1,E21=P20,E23=P22),AND(S3=0,E21=P20,P22,E23)),1)","v":1},{"$f":"IF(OR(AND(L21=P20,L23<P22),AND(L21=P20,L23=P22)),1)","v":1}]
[null,{"$f":"IF(Classification!E1=\"\",\"\",VLOOKUP(Classification!E1,Classification!$A$3:$AD$548,6,FALSE))","v":""},null,null,null,{"$f":"IF(AA22=\"\",\"\",AA22)","v":""},"",null,{"$f":"IF(Classification!F1=\"\",\"\",VLOOKUP(Classification!F1,Classification!$A$3:$AD$548,6,FALSE))","v":""},null,null,null,{"$f":"IF(AA22=\"\",\"\",AA22)","v":""},""]
[null,"TOTAL DE L'EQUIPE :",{"$f":"IF(OR(C18=\"\",C20=\"\",C22=\"\"),\"\",RIGHT(C18,1)+RIGHT(C20,1)+RIGHT(C22,1))","v":""},{"$f":"IF(E23=\"\",\"\",E23/$P$22)","v":""},null,null,null,null,"TOTAL DE L'EQUIPE :",{"$f":"IF(OR(J18=\"\",J20=\"\",J22=\"\"),\"\",RIGHT(J18,1)+RIGHT(J20,1)+RIGHT(J22,1))","v":""},{"$f":"IF(L23=\"\",\"\",L23/$P$22)","v":""}]
[]
[null,null,"<====Capitaine",null,null,null,null,null,null,"<====Capitaine"]
[null,null,"<====Signature du capitaine",null,null,null,null,null,null,"<====Signature du capitaine"]
[]
[null,{"$f":"IF(AND(B15=\"\",I15=\"\"),\"\",IF(OR(D24>K24,D24=K24),B15,I15))","v":""},null,null,null,{"$f":"IF(D24=0,\"\",IF(D24=K24,\"EGAL\",\"BAT\"))","v":"EGAL"},null,null,null,{"$f":"IF(AND(B15=\"\",I15=\"\"),\"\",IF(OR(D24>K24,D24=K24),I15,B15))","v":""}]
[]
[]
[null,"OBSERVATION :"]

{"sheet":"Adresses","index":1,"n_rows":35,"n_cols":10,"rows_kept":35,"cut":false,"hidden":false,"merged":[]}
[]
["N°Club","Ville","Nom Club","Adresse 1","Adresse 2","CP","VILLE2","Tel","Fax","Mel"]
[13101,"ARRAS","BILLARD CLUB ARRAGEOIS","Rue Paul  Claudel ","Résidence Saint Pol",62000,"ARRAS","03 21 23 33 96","03 21 23 33 96","arras.billardclub@wanadoo.fr"]
[13102,"AVION","BILLARD CLUB AVIONNAIS","GRPT Joliot Curie","Avenue Salingue",62210,"AVION",321430945,321420952,"bertrand.fremeaux@wanadoo.fr"]
[13103,"BILLY","BILLARD CLUB BILLYSIEN","3 Avenue de la Fosse 2",null,62420,"BILLY MONTIGNY",321201785,321492144,"billybc@9business.fr"]
[13104,"CARVIN","BILLARD CLUB CARVINOIS","Square Pont du Grès",null,62220,"CARVIN",321740644,321740644,"billard.carvin@cegetel.net"]
[13105,"LENS","AVENIR BILLARD CLUB LENSOIS","Rue Jules Ferry",null,62300,"LENS",321431862,321431862,"sebroussel62@yahoo.fr"]
[13107,"DOUAI","AMICALE BILLARD CLUB DOUAISIEN","Complexe Sportif de la Porte d'Arras","Rue d'Arras",59500,"DOUAI",327960636,327960636,"abcdouaibillard@orange.fr"]
[13109,"AUCHY","BILLARD CLUB AUCHY","Rue de Douai","Complexe Sportif",62138,"AUCHY",321267187,321267187]
[13110,"ANNOEULLIN","SPORT BILLARD CLUB ANNOEULLIN","Rue Watrelot",null,59112,"ANNOEULLIN",320866765,null,"s.b.c.a@orange.fr"]
[13117,"DIVION","BILLARD CLUB DIVIONNAIS","Rue Romain Rolland","Ecole Copernic",62710,"DIVION",321533121,321533121,"bcdivion@free.fr"]
[13123,"FOUQUIERES","BILLARD CLUB FOUQUIERES","38 rue Sainte Menehould",null,62740,"FOUQUIERES",321755759,321755759,"frederic.goetinck@hotmail.fr"]
[13124,"COURRIERES","COURRIERES SPORT BILLARD","28 rue Roger Salengro",null,62710,"COURRIERS",321200335,321200335,"courrieres@artois-billard.com"]
[13226,"WAZEMMES","BILLARD CLUB WAZEMMES","Le Retro","14 rue d'arcol",59000,"LILLE",320872110,null,"fiktoo2@yahoo.fr"]
[13231,"HOUPLINES","BILLARD CLUB HOUPLINES",null,"195 rue victor hugo",59116,"HOUPLINES",320100291,320354728]
[13236,"VILLENEUVE D'ASCQ","BILLARD Français VILLENEUVE D'ASCQ",null,"3 rue jean vilar",59650,"VILLENEUVE D'ASCQ",320055726,null,"davidvankieken@free.fr"]
[13240,"RONCHIN","BILLARD CLUB DU CANON D'OR","Salle Elizabeth dupont","rue pierre Dupont",59790,"RONCHIN",320522000,320521547,"bcco.ronchin@club-internet.fr"]
[13249,"FACHES THUMESNIL","BILLARD CLUB DE FACHES THUMESNIL",null,"173 rue carnot",59155,"FACHES THUMESNIL",320979487,null,"bcft@free.fr"]
[13250,"COUNTRY","LE COUNTRY BILLARD CLUB",null,"22 rue princesse",59000,"LILLE",320744668]
[13251,"LA CHAPELLES","BILLARD CLUB CHAPELLOIS","La plaine de détente","rue omere ollivier",59930,"LA CHAPELLES",320353812,null,"jeanluc.missiaen@wanadoo.fr"]
[13252,"ESTAIRES","BILLARD CLUB ESTAIROIS","Rue Jules Ferry","Impasse Louise de Marillac",59940,"ESTAIRES",328501349,null,"billardestairois@yahoo.fr"]
[13353,"DUNKERQUE","U.S.DUNKERQUOISE","Piscine Asseman","Place paul Asseman",59140,"DUNKERQUE",328669183,null,"usdbillard@wanadoo.fr"]
[13355,"GRAVELINES","U.S.GRAVELINOISE","SPORTICA","Place du polder",59820,"GRAVELINES",328655030,null,"gstop@free.fr"]
[13356,"OUTREAU","BILLARD CLUB OUTREAU","Salle Boër","37 rue jean jaures",62230,"OUTREAU",321803869,null,"eldave.62@orange.fr"]
[13360,"ST POL","BILLARD CLUB ST POLOIS","Centre romain roland","Avenue maurice bertaux",59430,"ST POL",328612377,null,"bc.sainpolois@free.fr"]
[13363,"CUCQ","AMICALE LAIQUE CUCQUOISE","Salle Robert Bouchez","place de l'ancienne mairie",62780,"CUCQ",321845067,null,"billard-de-cucq@wanadoo.fr"]
[13364,"CALAIS","ACADEMIE CALAISIENNE DE BILLARD","Complexe sportif calipso","rue roger martin du gard",62100,"CALAIS",321194394,null,"acbcbillardcalais@wanadoo.fr"]
[13365,"GRANDE-SYNTHE","OLYMPIQUE GRANDE-SYNTHE","Salle léo lagrange","3ter rue rigaud",59760,"GRANDE-SYNTHE",328218392,328218393,"PZERBUL@aol.com"]
[13368,"WIMILLE","BILLARD CLUB DE WIMILLE",null,"72 rue du bon secours",62126,"WIMILLE",321310276,null,"naldo1@hotmail.fr"]
[13369,"WIZERNES","WIZERNES BILLARD CLUB","Résidence marie curie","rue des écoles",62570,"WIZERNES",321392007]
[13370,"LE TOUQUET","LE TOUQUET BILLARD CLUB","Pôle tennistique","rond point des sports",62520,"LE TOUQUET",608047029,null,"letouquetbillardclub@neuf.fr"]
[13477,"VALENCIENNES"]
[13478,"DENAIN","ACADEMIE LA CARAMBOLE","Ancienne école de musique","211 rue de villars",59220,"DENAIN",327292061]
[13481,"BRUAY","BILLARD CLUB BRUAYSIEN",null,"52 rue michel brabant",59860,"Bruay sur escaut",327416004,null,"Billard-club-bruaisien@wanadoo.fr"]
[13482,"CAMBRAI","ACADEMIE DE CAMBRAI","Base de loisirs, Citadelle","La Paix de Nimégue",59400,"CAMBRAI",327783720,null,"Alanbury@free.fr"]

{"sheet":"Ecussons","index":2,"n_rows":27,"n_cols":9,"rows_kept":27,"cut":false,"hidden":false,"merged":[]}
[]
[]
[]
[]
[]
["Annoeulin","Arras","Avion","Billy","Bruay","Calais","Cambrai","Carvin","Courrières"]
[]
[]
[]
[]
[]
[]
["Cucq","Denain","Divion","Douai","Dunkerque","Estaires","Faches Thumesnil","Fouquières","Grande synthe"]
[]
[]
[]
[]
[]
[]
["Gravelines","Houplines","Le touquet","Lens","Outreau","Ronchin","St pol sur mer","Vermelle","Villeneuve d'asq"]
[]
[]
[]
[]
[]
[]
["Wizernes","FFB","59-62","LIGUE","CD59","CD62"]

{"sheet":"Classification","index":3,"n_rows":600,"n_cols":41,"rows_kept":600,"cut":false,"hidden":false,"merged":[]}
[null,null,null,null,null,null,null,null,null,null,null,null,null,null,null,null,null,null,null,null,null,null,null,null,null,null,null,null,null,null,null,null,null,null,null,"ANNOEULLIN",{"$f":"COUNTIF($B$3:$B$600,AJ1)","v":37},{"$f":"AK1+2","v":39},null,null,{"$f":"IF(VISITE=\"\",\"\",\"A\"&VLOOKUP(VISITE,Classification!$AJ$1:$AL$15,3,FALSE)-VLOOKUP(VISITE,Classification!$AJ$1:$AL$15,2,FALSE)+1&\":\"&\"D\"&VLOOKUP(VISITE,Classification!$AJ$1:$AL$15,3,FALSE))","v":""}]
["Code","Nom Club","Nom","Prenom","Date Naissance","Licence","AN","CAT","Libre","C","*","AN2","CAT3","Cadre","Colonne1","*4","AN3","CAT6","1-Bande","C7","*8","AN4","CAT10","3-Bandes","C11","*12","AN5","5 Quilles",null,null,"CLUB","Licence 2013",null,null,null,"BRUAY SUR ESCAUT",17,{"$f":"AK2+AL1","v":56},null,null,{"$f":"IF(VISITEUR=\"\",\"\",\"A\"&VLOOKUP(VISITEUR,Classification!$AJ$1:$AL$15,3,FALSE)-VLOOKUP(VISITEUR,Classification!$AJ$1:$AL$15,2,FALSE)+1&\":\"&\"D\"&VLOOKUP(VISITEUR,Classification!$AJ$1:$AL$15,3,FALSE))","v":""}]
[1,"ANNOEULLIN","BAROIS              ","PATRICK      ","1958-03-15","138349D",11,"R3",1.36,null,"*",null,null,null,null,null,null,null,null,null,null,null,null,null,null,null,null,null,null,"OK",13110,"OUI",null,null,null,"CAMBRAI",20,{"$f":"AK3+AL2","v":76}]
[2,"ANNOEULLIN","BEGHIN              ","BENJAMIN     ","2001-10-25","145779X",null,null,null,null,null,null,null,null,null,null,null,null,null,null,null,null,null,null,null,null,null,null,null,"OK",13110,"OUI",null,null,null,"CHAPELLE ARMENTIERES",7,83]
[3,"ANNOEULLIN","BEGHIN              ","NICOLAS      ","1971-06-17","148048X",null,null,null,null,null,null,null,null,null,null,null,null,null,null,null,null,null,null,null,null,null,null,null,"OK",13110,"OUI",null,null,null,"DENAIN",37,120]
[4,"ANNOEULLIN","CARPENTIER          ","YOHANNE      ","1970-03-19","016914O",10,"R2",3.3587499999999997,null,"*",null,null,null,null,null,null,null,null,null,null,11,"N3",0.47674418604651159,null,"*",null,null,null,"OK",13110,"OUI",null,null,null,"DOUAI",35,155]
[5,"ANNOEULLIN","CAUX                ","FREDERIC     ","1962-07-23","017026W",10,"R3",1.4099999999999997,null,"*",null,null,null,null,null,9,"R2",0.9887640449438202,null,"*",null,null,null,null,null,null,null,null,"OK",13110,"OUI",null,null,null,"DUNKERQUE",85,240]
[6,"ANNOEULLIN","CAUX                ","GREGORY      ","1993-08-20","147265W",null,null,null,null,null,null,null,null,null,null,null,null,null,null,null,null,null,null,null,null,null,null,null,"OK",13110,"OUI",null,null,null,"ESTAIRES",13,253]
[7,"ANNOEULLIN","D HONDT             ","BERTRAND     ","1953-10-08","143079B",null,null,null,null,null,null,null,null,null,null,null,null,null,null,null,null,null,null,null,null,null,null,null,"OK",13110,"OUI",null,null,null,"FACHES THUMESNIL",47,300]
[8,"ANNOEULLIN","DELCOURT            ","ROBERT       ","1941-03-13","016873Z",null,null,null,null,null,null,null,null,null,null,null,null,null,null,null,null,null,null,null,null,null,null,null,"OK",13110,"OUI",null,null,null,"GRANDE-SYNTHE",17,317]
[9,"ANNOEULLIN","DELSOL              ","PHILIPPE     ","1969-12-26","101151L",null,null,null,null,null,null,null,null,null,null,10,"N1",3.06,null,"*",12,"N1",0.58099999999999996,null,null,null,null,null,"OK",13110,"OUI",null,null,null,"GRAVELINES",40,357]
[10,"ANNOEULLIN","DEROLEZ             ","JEAN PIERRE  ","1950-06-18","101152M",null,null,null,null,null,null,null,null,null,null,null,null,null,null,null,12,"R1",0.32209302325581396,null,"*",null,null,null,"OK",13110,"OUI",null,null,null,"HOUPLINES",21,378]
[11,"ANNOEULLIN","DONNEAU             ","PHILIPPE     ","1952-10-27","138350E",12,"R4",1.0899999999999999,null,"*",null,null,null,null,null,12,"R2",0.62921348314606751,null,"*",null,null,null,null,null,null,null,null,"OK",13110,"OUI",null,null,null,"RONCHIN",93,471]
[12,"ANNOEULLIN","FLOURE              ","STEPHANE     ","1977-03-20","147296E",null,null,null,null,null,null,null,null,null,null,null,null,null,null,null,null,null,null,null,null,null,null,null,"OK",13110,"OUI",null,null,null,"ST POL SUR MER",23,494]
[13,"ANNOEULLIN","FOURMAUX            ","GERARD       ","1950-08-19","147122Q",null,null,null,null,null,null,null,null,null,null,null,null,null,null,null,null,null,null,null,null,null,null,null,"OK",13110,"OUI",null,null,null,"VILLENEUVE D ASCQ",54,548]
[14,"ANNOEULLIN","FOURMAUX            ","PIERRE       ","1922-09-20","147121P",null,null,null,null,null,null,null,null,null,null,null,null,null,null,null,null,null,null,null,null,null,null,null,"OK",13110,"OUI"]
[15,"ANNOEULLIN","GEETS               ","PATRICE      ","1959-08-28","126847T",10,"R3",1.69875,null,"*",null,null,null,null,null,null,null,null,null,null,null,null,null,null,null,null,null,null,"OK",13110,"OUI"]
[16,"ANNOEULLIN","GUILLEMANT          ","ALEXANDRE    ","1980-06-28","016874A",null,null,null,null,null,null,null,null,null,null,null,null,null,null,null,null,null,null,null,null,null,null,null,"OK",13110,"OUI"]
[17,"ANNOEULLIN","GUILLEMANT          ","DAVID        ","1977-01-30","016875B",null,null,null,null,null,null,null,null,null,null,8,"N3",2.0337078651685392,null,"*",8,"N2",0.54900000000000004,null,"*",null,null,null,"OK",13110,"OUI"]
[18,"ANNOEULLIN","GUILLEMANT          ","JEAN MARC    ","1951-01-10","017025V",null,null,null,null,null,null,null,null,null,null,null,null,null,null,null,null,null,null,null,null,null,null,null,"OK",13110,"OUI"]
[19,"ANNOEULLIN","KERKAERT            ","JEAN MARIE   ","1944-04-28","138351F",12,"R4",1.0125,null,"*",null,null,null,null,null,12,"R2",0.65168539325842689,null,"*",null,null,null,null,null,null,null,null,"OK",13110,"OUI"]
[20,"ANNOEULLIN","KRAUPNER            ","JULES        ","1946-09-25","017012I",null,null,null,null,null,null,null,null,null,null,null,null,null,null,null,null,null,null,null,null,null,null,null,"OK",13110,"OUI"]
[21,"ANNOEULLIN","LHERMITTE           ","CEDRIC       ","1979-05-16","016910K",10,"R1",4.9799999999999995,null,"*",null,null,null,null,null,8,"N3",1.8089887640449438,null,"*",null,null,null,null,null,null,null,null,"OK",13110,"OUI"]
[22,"ANNOEULLIN","LOTHE               ","JEAN LUC     ","1949-11-15","016588A",null,null,null,null,null,null,null,null,null,null,null,null,null,null,null,null,null,null,null,null,null,null,null,"OK",13110,"OUI"]
[23,"ANNOEULLIN","MAILLE              ","BERNARD      ","1959-07-15","016763T",10,"R2",2.3824999999999998,null,"*",null,null,null,null,null,null,null,null,null,null,9,"N3",0.39418604651162792,null,"*",null,null,null,"OK",13110,"OUI"]
[24,"ANNOEULLIN","MARTEL Jean-Pierre",null,null,null,null,null,null,null,null,null,null,null,null,null,9,"R2",0.75280898876404501,null,"*",null,null,null,null,null,null,null,null,"",13110]
[25,"ANNOEULLIN","MORANT Kévin",null,null,null,8,"R4",0.79499999999999993,null,"*",null,null,null,null,null,null,null,null,null,null,null,null,null,null,null,null,null,null,"",13110]
[26,"ANNOEULLIN","POTTIER             ","BERTRAND     ","1981-01-20","148250R",null,null,null,null,null,null,null,null,null,null,null,null,null,null,null,null,null,null,null,null,null,null,null,"OK",13110,"OUI"]
[27,"ANNOEULLIN","PREVOST             ","JEAN CLAUDE  ","1939-04-07","016591D",null,null,null,null,null,null,null,null,null,null,null,null,null,null,null,null,null,null,null,null,null,null,null,"OK",13110,"OUI"]
[28,"ANNOEULLIN","RACARY              ","THIBAULT     ","1985-03-26","141510S",10,"R1",4.2699999999999996,null,"*",null,null,null,null,null,null,null,null,null,null,null,null,null,null,null,null,null,null,"OK",13110,"OUI"]
[29,"ANNOEULLIN","SAUVAGE Jean-Claude",null,null,null,10,"R3",1.2949999999999999,null,"*",null,null,null,null,null,null,null,null,null,null,null,null,null,null,null,null,null,null,"",13110]
[30,"ANNOEULLIN","SCIMIA              ","LUIGI        ","1950-10-12","141511T",null,null,null,null,null,null,null,null,null,null,null,null,null,null,null,null,null,null,null,null,null,null,null,"OK",13110,"OUI"]
[31,"ANNOEULLIN","VALLART             ","DIDIER       ","1959-06-16","145781Z",null,null,null,null,null,null,null,null,null,null,null,null,null,null,null,null,null,null,null,null,null,null,null,"OK",13110,"OUI"]
[32,"ANNOEULLIN","VANDAELE            ","DANIEL       ","1940-12-31","102991F",null,null,null,null,null,null,null,null,null,null,null,null,null,null,null,null,null,null,null,null,null,null,null,"OK",13110,"OUI"]
[33,"ANNOEULLIN","VASSAL André",null,null,null,8,"R4",0.54125000000000001,null,"*",null,null,null,null,null,null,null,null,null,null,null,null,null,null,null,null,null,null,"",13110]
[34,"ANNOEULLIN","VERBEKEN            ","GERARD       ","1953-12-13","141512U",null,null,null,null,null,null,null,null,null,null,null,null,null,null,null,null,null,null,null,null,null,null,null,"OK",13110,"OUI"]
[35,"ANNOEULLIN","VERPLANCKE          ","JEAN PIERRE  ","1953-02-07","147295D",null,null,null,null,null,null,null,null,null,null,null,null,null,null,null,null,null,null,null,null,null,null,null,"OK",13110,"OUI"]
[36,"ANNOEULLIN","VINCENT             ","GERARD       ","1948-07-12","141513V",null,null,null,null,null,null,null,null,null,null,null,null,null,null,null,null,null,null,null,null,null,null,null,"OK",13110,"OUI"]
[37,"ANNOEULLIN","ZEUDE               ","ALAIN        ","1958-03-24","141514W",12,"R4",0.96250000000000002,null,"*",null,null,null,null,null,12,"R2",0.6067415730337079,null,"*",null,null,null,null,null,null,null,null,"OK",13110,"OUI"]
[38,"BRUAY SUR ESCAUT","BERNUS Florent",null,null,null,10,"R4",0.91374999999999995,null,"*",null,null,null,null,null,10,"R2",0.5617977528089888,null,"*",null,null,null,null,null,null,null,null,"",13481]
[39,"BRUAY SUR ESCAUT","BUONDELMONTE        ","ANTONIO      ","1949-06-04","016719B",12,"R3",1.7649999999999999,null,"*",null,null,null,null,null,12,"R1",1.0112359550561798,null,"*",12,"R1",0.3174418604651163,null,"*",null,null,null,"OK",13481,"OUI"]
[40,"BRUAY SUR ESCAUT","BUONDELMONTE        ","NAZARIO      ","1942-04-11","017134A",12,"R3",1.825,null,"*",null,null,null,null,null,12,"R1",1.0674157303370786,null,"*",null,null,null,null,null,null,null,null,"OK",13481,"OUI"]
[41,"BRUAY SUR ESCAUT","CYTHERE Gérard",null,null,null,10,"R2",2.34,null,"*",null,null,null,null,null,9,"R1",1.1348314606741572,null,"*",8,"N3",0.36627906976744184,null,"*",null,null,null,"",13481]
[42,"BRUAY SUR ESCAUT","DELORY Gaston",null,null,null,null,null,null,null,null,null,null,null,null,null,null,null,null,null,null,9,"R1",0.31976744186046513,null,"*",null,null,null,"",13481]
[43,"BRUAY SUR ESCAUT","GOSTIAU Joris",null,null,null,10,"R3",2.0099999999999998,null,"*",null,null,null,null,null,null,null,null,null,null,null,null,null,null,null,null,null,null,"",13481]
[44,"BRUAY SUR ESCAUT","HENNEUSE            ","PATRICK      ","1956-08-03","016721D",null,null,null,null,null,null,null,null,null,null,null,null,null,null,null,8,"N2",0.52600000000000002,null,"*",null,null,null,"OK",13481,"OUI"]
[45,"BRUAY SUR ESCAUT","KOLODZIEJCZYK Thadée",null,null,null,9,"R4",1.01125,null,"*",null,null,null,null,null,null,null,null,null,null,null,null,null,null,null,null,null,null,"",13481]
[46,"BRUAY SUR ESCAUT","LEFEBVRE Jean-Pierre",null,null,null,null,null,null,null,null,null,null,null,null,null,8,"R2",0.5842696629213483,null,"*",null,null,null,null,null,null,null,null,"",13481]
[47,"BRUAY SUR ESCAUT","MAUPIN Patrick",null,null,null,9,"R1",4.4224999999999994,null,"*",8,"R1 42/2",3.4674999999999998,null,"*",10,"R1",1.7078651685393258,null,"*",null,null,null,null,null,null,null,null,"",13481]
[48,"BRUAY SUR ESCAUT","PORTIER             ","ALEXANDRE    ","2000-11-03","139644Y",12,"R4",1.09375,null,"*",null,null,null,null,null,12,"R2",0.7303370786516854,null,"*",10,"R2",9.4186046511627916E-2,null,"*",null,null,null,"OK",13481,"OUI"]
[49,"BRUAY SUR ESCAUT","PORTIER             ","CHRISTOPHE   ","1993-10-02","139645Z",12,"R2",3.7574999999999994,null,"*",null,null,null,null,null,12,"R1",1.2808988764044942,null,"*",11,"R1",0.34302325581395349,null,"*",null,null,null,"OK",13481,"OUI"]
[50,"BRUAY SUR ESCAUT","RITROVATO Romuald",null,null,null,null,null,null,null,null,null,null,null,null,null,8,"R2",0.9101123595505618,null,"*",null,null,null,null,null,null,null,null,"",13481]
[51,"BRUAY SUR ESCAUT","ROUGE Jacques",null,null,null,8,"R2",2.8162500000000001,null,"*",8,"R1 42/2",2.4612500000000002,null,"*",null,null,null,null,null,null,null,null,null,null,null,null,null,"",13481]
[52,"BRUAY SUR ESCAUT","SAINT MAXENT Jérôme",null,null,null,12,"N3",9.2724999999999991,null,"*",null,null,null,null,null,null,null,null,null,null,12,"N1",0.72699999999999998,null,"*",null,null,null,"",13481]
[53,"BRUAY SUR ESCAUT","TURPIN              ","LAURENT      ","1973-11-09","127680U",12,"R3",1.9624999999999999,null,"*",null,null,null,null,null,12,"R1",1.292134831460674,null,"*",12,"N3",0.38837209302325582,null,"*",null,null,null,"OK",13481,"OUI"]
[54,"BRUAY SUR ESCAUT","WISNIEWSKI          ","DONALD       ","1942-02-22","016725H",9,"R2",2.9274999999999998,null,"*",null,null,null,null,null,null,null,null,null,null,null,null,null,null,null,null,null,null,"OK",13481,"OUI"]
[55,"CAMBRAI","BOCQUET Grégoire",null,null,null,10,"R4",0.72999999999999987,null,"*",null,null,null,null,null,null,null,null,null,null,null,null,null,null,null,null,null,null,"",13482]
[56,"CAMBRAI","BRION Jean-Pierre",null,null,null,null,null,null,null,null,null,null,null,null,null,9,"R2",0.97752808988764039,null,"*",8,"R2",0.21395348837209302,null,"*",null,null,null,"",13482]
[57,"CAMBRAI","BURY                ","ALAIN        ","1952-07-27","016732O",null,null,null,null,null,null,null,null,null,null,null,null,null,null,null,12,"N1",0.60799999999999998,null,"*",null,null,null,"OK",13482,"OUI"]
[58,"CAMBRAI","DECLERCK Bruno",null,null,null,10,"R3",1.8499999999999999,null,"*",null,null,null,null,null,9,"R1",1.3820224719101124,null,"*",11,"N3",0.42790697674418604,null,"*",null,null,null,"",13482]
[59,"CAMBRAI","DELFOLIE Gérald",null,null,null,9,"R3",1.22875,null,"*",null,null,null,null,null,9,"R2",0.6966292134831461,null,"*",null,null,null,null,null,null,null,null,"",13482]
[60,"CAMBRAI","DESCHAMPS Bertrand",null,null,null,9,"R3",1.68875,null,"*",null,null,null,null,null,9,"R1",1.0224719101123596,null,"*",9,"R1",0.26976744186046514,null,"*",null,null,null,"",13482]
[61,"CAMBRAI","DRIGUET             ","ARNAUD       ","1972-08-09","016891R",9,"N3",6.4487499999999995,null,"*",null,null,null,null,null,8,"N3",1.9775280898876404,null,"*",11,"N2",0.48199999999999998,null,"*",null,null,null,"OK",13482,"OUI"]
[62,"CAMBRAI","DUHEN               ","FLORIAN      ","1992-03-21","121381N",10,"R2",3.6924999999999999,null,"*",null,null,null,null,null,10,"R1",1.4943820224719102,null,"*",9,"N3",0.45813953488372094,null,"*",null,null,null,"OK",13482,"OUI"]
[63,"CAMBRAI","DUMEZ Paul",null,null,null,9,"R3",1.41625,null,"*",null,null,null,null,null,null,null,null,null,null,null,null,null,null,null,null,null,null,"",13482]
[64,"CAMBRAI","HODIN               ","DANIEL       ","1958-09-03","016704M",12,"R2",3.1712499999999997,null,"*",null,null,null,null,null,null,null,null,null,null,12,"N3",0.46744186046511632,null,"*",null,null,null,"OK",13482,"OUI"]
[65,"CAMBRAI","ISKIW Paul",null,null,null,8,"R4",0.50249999999999995,null,"*",null,null,null,null,null,null,null,null,null,null,null,null,null,null,null,null,null,null,"",13482]
[66,"CAMBRAI","LEFORT              ","LUCAS        ","2000-08-20","147513Q",null,null,null,null,null,null,null,null,null,null,null,null,null,null,null,null,null,null,null,null,null,null,null,"OK",13482,"OUI"]
[67,"CAMBRAI","MARQUANT Jérôme",null,null,null,8,"R4",1.0812499999999998,null,"*",null,null,null,null,null,null,null,null,null,null,8,"R1",0.29651162790697677,null,"*",null,null,null,"",13482]
[68,"CAMBRAI","MARTIN Daniel",null,null,null,11,"R3",1.3037499999999997,null,"*",null,null,null,null,null,10,"R2",0.77528089887640439,null,"*",null,null,null,null,null,null,null,null,"",13482]
[69,"CAMBRAI","MARTIN Ezechiel",null,null,null,10,"R4",0.97624999999999995,null,"*",null,null,null,null,null,10,"R2",0.5056179775280899,null,"*",null,null,null,null,null,null,null,null,"",13482]
[70,"CAMBRAI","NENON               ","FRANCIS      ","1947-12-20","021256O",null,null,null,null,null,12,"N2 47/2",4.66,null,null,12,"N3",2.4494382022471912,null,"*",12,"N2",0.52800000000000002,null,"*",null,null,null,"OK",13482,"OUI"]
[71,"CAMBRAI","NOWAKOWSKI          ","ALEXANDRE    ","1994-03-24","136020O",11,"N3",9.6387499999999999,null,"*",11,"N3 42/2",5.9674999999999994,null,"*",10,"N3",1.8539325842696628,null,"*",12,"N3",0.34186046511627904,null,null,null,null,null,"OK",13482,"OUI"]
[72,"CAMBRAI","PAMART Alexis",null,null,null,9,"R4",0.97,null,"*",null,null,null,null,null,null,null,null,null,null,null,null,null,null,null,null,null,null,"",13482]
[73,"CAMBRAI","ROUSSEAU            ","BERNARD      ","1962-09-06","129055R",9,"R4",1.1487499999999999,null,"*",null,null,null,null,null,9,"R2",0.6853932584269663,null,"*",12,"R1",0.31627906976744191,null,"*",null,null,null,"OK",13482,"OUI"]
[74,"CAMBRAI","WAXIN Jean-Jacques",null,null,null,10,"R4",1.0037499999999999,null,"*",null,null,null,null,null,10,"R2",0.65168539325842689,null,"*",8,"R2",0.19767441860465118,null,"*",null,null,null,"",13482]
[75,"CHAPELLE ARMENTIERES","BOONE Raphaël",null,null,null,10,"R4",1.0174999999999998,null,"*",null,null,null,null,null,null,null,null,null,null,null,null,null,null,null,null,null,null,"",13251]
[76,"CHAPELLE ARMENTIERES","BOUQUET Laurent",null,null,null,null,null,null,null,null,8,"R1 42/2",2.585,null,"*",null,null,null,null,null,null,null,null,null,null,null,null,null,"",13251]
[77,"CHAPELLE ARMENTIERES","DEMEULNAERE Jean-Claude",null,null,null,10,"R4",0.79874999999999996,null,"*",null,null,null,null,null,null,null,null,null,null,null,null,null,null,null,null,null,null,"",13251]
[78,"CHAPELLE ARMENTIERES","HAZELAERE Francis",null,null,null,10,"R4",0.99375000000000002,null,"*",null,null,null,null,null,null,null,null,null,null,null,null,null,null,null,null,null,null,"",13251]
[79,"CHAPELLE ARMENTIERES","LEPLUS Alain",null,null,null,10,"R3",2.0574999999999997,null,"*",null,null,null,null,null,null,null,null,null,null,null,null,null,null,null,null,null,null,"",13251]
[80,"CHAPELLE ARMENTIERES","ROLAIN Serge",null,null,null,10,"R4",0.9375,null,"*",null,null,null,null,null,null,null,null,null,null,null,null,null,null,null,null,null,null,"",13251]
[81,"CHAPELLE ARMENTIERES","VANDIONANT Michel",null,null,null,null,null,null,null,null,null,null,null,null,null,null,null,null,null,null,9,"R2",0.17093023255813952,null,"*",null,null,null,"",13251]
[82,"DENAIN","BARNO               ","CASSANDRE    ","1993-08-12","143081D",12,"R4",0.64500000000000002,null,"*",null,null,null,null,null,12,"R2",0.3820224719101124,null,"*",null,null,null,null,null,null,null,null,"OK",13478,"OUI"]
[83,"DENAIN","BOULANGER Steve",null,null,null,9,"R3",1.6912499999999999,null,"*",null,null,null,null,null,9,"R2",0.797752808988764,null,"*",9,"R1",0.29651162790697677,null,"*",null,null,null,"",13478]
[84,"DENAIN","COLLIEZ Jacques",null,null,null,11,"R3",1.79125,null,"*",null,null,null,null,null,10,"R1",1.1348314606741572,null,"*",9,"N3",0.40116279069767441,null,"*",null,null,null,"",13478]
[85,"DENAIN","COPPIN              ","OLIVIER      ","1978-07-28","136025T",11,"R4",0.69625000000000004,null,"*",null,null,null,null,null,12,"R2",0.64044943820224709,null,"*",8,"R2",0.1372093023255814,null,"*",null,null,null,"OK",13478,"OUI"]
[86,"DENAIN","COUPLET             ","LEON         ","1926-11-22","147865Y",null,null,null,null,null,null,null,null,null,null,null,null,null,null,null,null,null,null,null,null,null,null,null,"OK",13478,"OUI"]
[87,"DENAIN","COUWEZ Jean-Marc",null,null,null,10,"R2",2.1549999999999998,null,null,9,"R1 42/2",1.5712499999999998,null,"*",null,null,null,null,null,10,"R1",0.27674418604651163,null,"*",null,null,null,"",13478]
[88,"DENAIN","DEBRUILLE           ","ANTHONY      ","1988-12-22","123789D",null,null,null,null,null,null,null,null,null,null,null,null,null,null,null,null,null,null,null,null,null,null,null,"OK",13478,"OUI"]
[89,"DENAIN","DELSAUT             ","CLAUDE       ","1941-01-16","147866Z",null,null,null,null,null,null,null,null,null,null,null,null,null,null,null,null,null,null,null,null,null,null,null,"OK",13478,"OUI"]
[90,"DENAIN","DRAPIER Francois",null,null,null,9,"R4",0.65125,null,"*",null,null,null,null,null,9,"R2",0.31460674157303375,null,"*",null,null,null,null,null,null,null,null,"",13478]
[91,"DENAIN","DRUART              ","ANDRE        ","1931-03-08","017133Z",10,"R4",0.83625000000000005,null,"*",null,null,null,null,null,8,"R2",0.5730337078651685,null,"*",null,null,null,null,null,null,null,null,"OK",13478,"OUI"]
[92,"DENAIN","DUFOUR Patrick",null,null,null,9,"R4",0.8075,null,"*",null,null,null,null,null,null,null,null,null,null,null,null,null,null,null,null,null,null,"",13478]
[93,"DENAIN","ESCHENBRENNER       ","DONOVAN      ","1989-11-12","129335L",12,"N3",12.108749999999999,null,"*",12,"N2 47/2",5.9980000000000002,null,"*",12,"N3",2.5617977528089884,null,"*",null,null,null,null,null,null,null,null,"OK",13478,"OUI"]
[94,"DENAIN","ESPALIEU            ","JEAN FRANCOIS","1956-08-11","016708Q",11,"R2",2.3937499999999998,null,"*",null,null,null,null,null,12,"R1",1.4269662921348314,null,"*",11,"N2",0.46600000000000003,null,"*",null,null,null,"OK",13478,"OUI"]
[95,"DENAIN","FAILLE              ","MICHEL       ","1936-09-10","147864X",null,null,null,null,null,null,null,null,null,null,null,null,null,null,null,null,null,null,null,null,null,null,null,"OK",13478,"OUI"]
[96,"DENAIN","FLEURANT            ","ALEXANDRE    ","1999-09-20","141329T",12,"R4",0.9425,null,"*",null,null,null,null,null,null,null,null,null,null,12,"R2",0.21976744186046512,null,"*",null,null,null,"OK",13478,"OUI"]
[97,"DENAIN","FLEURANT            ","RICHARD      ","1964-05-29","016709R",12,"R3",1.85625,null,"*",null,null,null,null,null,12,"R2",0.89887640449438211,null,"*",11,"N3",0.32558139534883723,null,null,null,null,null,"OK",13478,"OUI"]
[98,"DENAIN","FRANCQUEVILLE       ","RAYMOND      ","1931-01-14","147862V",null,null,null,null,null,null,null,null,null,null,null,null,null,null,null,null,null,null,null,null,null,null,null,"OK",13478,"OUI"]
[99,"DENAIN","GHALEM Mehdi",null,null,null,8,"R4",0.43249999999999994,null,"*",null,null,null,null,null,null,null,null,null,null,null,null,null,null,null,null,null,null,"",13478]
[100,"DENAIN","HILAIRE             ","JIMMY        ","1993-08-04","137050E",12,"R1",4.6825000000000001,null,"*",null,null,null,null,null,12,"N3",1.7640449438202248,null,"*",12,"N2",0.5,null,"*",null,null,null,"OK",13478,"OUI"]
[101,"DENAIN","HOCHART             ","JACK         ","1999-08-12","138371Z",12,"R4",0.70874999999999988,null,"*",null,null,null,null,null,12,"R2",0.4831460674157303,null,"*",10,"R2",0.15232558139534885,null,"*",null,null,null,"OK",13478,"OUI"]
[102,"DENAIN","HOCHART             ","JAMES        ","1962-09-26","127686A",12,"R4",0.91124999999999989,null,"*",null,null,null,null,null,12,"R2",0.6629213483146067,null,"*",8,"R2",0.18488372093023256,null,"*",null,null,null,"OK",13478,"OUI"]
[103,"DENAIN","HOCHART             ","JEFFERSON    ","1994-05-15","123809X",12,"R3",1.7037499999999999,null,"*",null,null,null,null,null,null,null,null,null,null,12,"N3",0.39186046511627909,null,"*",null,null,null,"OK",13478,"OUI"]
[104,"DENAIN","HORNAIN             ","DENIS        ","1966-03-21","016710S",12,"N3",3.9237499999999996,null,null,10,"N3 42/2",3.1624999999999996,null,null,12,"N3",1.7078651685393258,null,null,12,"N2",0.44500000000000001,null,null,null,null,null,"OK",13478,"OUI"]
[105,"DENAIN","JOURNET Fabrice",null,null,null,8,"R4",0.50375000000000003,null,"*",null,null,null,null,null,10,"R2",0.32584269662921345,null,"*",8,"R2",7.6744186046511634E-2,null,"*",null,null,null,"",13478]
[106,"DENAIN","LAGRENEZ            ","THOMAS       ","2000-03-11","147858Q",null,null,null,null,null,null,null,null,null,null,null,null,null,null,null,null,null,null,null,null,null,null,null,"OK",13478,"OUI"]
[107,"DENAIN","LEHU                ","LOUIS        ","1926-11-01","147860S",null,null,null,null,null,null,null,null,null,null,null,null,null,null,null,null,null,null,null,null,null,null,null,"OK",13478,"OUI"]
[108,"DENAIN","LEMAIRE             ","WILLIAM      ","1926-07-07","147863W",null,null,null,null,null,null,null,null,null,null,null,null,null,null,null,null,null,null,null,null,null,null,null,"OK",13478,"OUI"]
[109,"DENAIN","MARCHESSOUX         ","MICHAEL      ","1978-06-13","128411X",10,"R3",1.22,null,"*",null,null,null,null,null,9,"R2",0.6741573033707865,null,"*",12,"R1",0.27093023255813953,null,"*",null,null,null,"OK",13478,"OUI"]
[110,"DENAIN","MARONNIER           ","JEAN LUC     ","1956-04-06","129336M",12,"R4",0.48375000000000001,null,"*",null,null,null,null,null,10,"R2",0.24719101123595505,null,"*",null,null,null,null,null,null,null,null,"OK",13478,"OUI"]
[111,"DENAIN","MATHIEU             ","JEAN         ","1942-04-21","147868B",null,null,null,null,null,null,null,null,null,null,null,null,null,null,null,null,null,null,null,null,null,null,null,"OK",13478,"OUI"]
[112,"DENAIN","NEUVILLE            ","DANIEL       ","1937-05-24","147859R",null,null,null,null,null,null,null,null,null,null,null,null,null,null,null,null,null,null,null,null,null,null,null,"OK",13478,"OUI"]
[113,"DENAIN","PAKOSZ              ","ALAIN        ","1951-08-21","141516Y",null,null,null,null,null,null,null,null,null,null,null,null,null,null,null,null,null,null,null,null,null,null,null,"OK",13478,"OUI"]
[114,"DENAIN","PECAUT              ","BERNARD      ","1938-04-23","141515X",null,null,null,null,null,null,null,null,null,null,null,null,null,null,null,null,null,null,null,null,null,null,null,"OK",13478,"OUI"]
[115,"DENAIN","PORTIER Marcel",null,null,null,11,"R4",0.69125000000000003,null,"*",null,null,null,null,null,null,null,null,null,null,null,null,null,null,null,null,null,null,"",13478]
[116,"DENAIN","THERY Valentin",null,null,null,9,"R4",0.78249999999999997,null,"*",null,null,null,null,null,null,null,null,null,null,null,null,null,null,null,null,null,null,"",13478]
[117,"DENAIN","WAREZ Julien",null,null,null,11,"R4",0.69625000000000004,null,"*",null,null,null,null,null,null,null,null,null,null,null,null,null,null,null,null,null,null,"",13478]
[118,"DENAIN","ZIENTECK            ","LUCIEN       ","1943-12-14","147867A",null,null,null,null,null,null,null,null,null,null,null,null,null,null,null,null,null,null,null,null,null,null,null,"OK",13478,"OUI"]
[119,"DOUAI","ANDRE Francois",null,null,null,10,"N3",4.5387499999999994,null,null,9,"N2 47/2",4.1929999999999996,null,null,9,"N3",2.0224719101123596,null,"*",10,"N2",0.496,null,"*",null,null,null,"",13107]
[120,"DOUAI","ARNAUD              ","RENE         ","1962-09-19","143078A",12,"R4",0.77499999999999991,null,"*",null,null,null,null,null,null,null,null,null,null,null,null,null,null,null,null,null,null,"OK",13107,"OUI"]
[121,"DOUAI","BONNAILLIE          ","MICHEL       ","1932-08-02","145639N",null,null,null,null,null,null,null,null,null,null,null,null,null,null,null,null,null,null,null,null,null,null,null,"OK",13107,"OUI"]
[122,"DOUAI","BRESSAC             ","GUILLAUME    ","1985-09-23","112118G",12,"N3",9.3149999999999995,null,"*",12,"N2 47/2",5.7510000000000003,null,"*",12,"N3",2.0786516853932584,null,"*",12,"N2",0.48399999999999999,null,"*",null,null,null,"OK",13107,"OUI"]
[123,"DOUAI","CARLIER Arnaud",null,null,null,9,"R4",0.49249999999999999,null,"*",null,null,null,null,null,null,null,null,null,null,null,null,null,null,null,null,null,null,"",13107]
[124,"DOUAI","CHEVALET            ","BRIGITTE     ","1948-06-18","129313P",null,null,null,null,null,null,null,null,null,null,null,null,null,null,null,null,null,null,null,null,null,null,null,"OK",13107,"OUI"]
[125,"DOUAI","COQUEREL            ","PATRICK      ","1950-10-16","121357P",10,"R4",0.81499999999999995,null,"*",null,null,null,null,null,null,null,null,null,null,null,null,null,null,null,null,null,null,"OK",13107,"OUI"]
[126,"DOUAI","DELFORGE Jacques",null,null,null,10,"R3",1.8712500000000001,null,"*",null,null,null,null,null,null,null,null,null,null,null,null,null,null,null,null,null,null,"",13107]
[127,"DOUAI","DELFORGE Roger",null,null,"101131R",10,"R4",0.89249999999999996,null,"*",null,null,null,null,null,null,null,null,null,null,null,null,null,null,null,null,null,null,"",13107]
[128,"DOUAI","DELPLANQUE          ","FABIEN       ","1967-11-27","112734Y",null,null,null,null,null,null,null,null,null,null,12,"N1",2.09,null,null,12,"N2",0.51200000000000001,null,"*",null,null,null,"OK",13107,"OUI"]
[129,"DOUAI","DEMAILLY            ","JEAN CLAUDE  ","1945-08-04","107611X",12,"R3",1.91,null,"*",null,null,null,null,null,null,null,null,null,null,null,null,null,null,null,null,null,null,"OK",13107,"OUI"]
[130,"DOUAI","DESBLEUMORTIERS     ","ANDRE        ","1957-05-25","016530U",12,"R1",4.2012499999999999,null,"*",12,"N3 42/2",3.5812500000000003,null,"*",12,"R1",1.6067415730337078,null,"*",12,"N3",0.37558139534883722,null,"*",null,null,null,"OK",13107,"OUI"]
[131,"DOUAI","DESSAINT            ","PASCAL       ","1969-04-26","016747D",11,"Master",96.25,null,"*",12,"Masters 47/2",23.218,null,"*",12,"Master",5.12,null,"*",12,"N1",0.66400000000000003,null,"*",null,null,null,"OK",13107,"OUI"]
[132,"DOUAI","FLASQUE             ","CLAUDE       ","1942-01-08","116562E",12,"R3",1.3337499999999998,null,"*",null,null,null,null,null,null,null,null,null,null,12,"R1",0.28488372093023256,null,"*",null,null,null,"OK",13107,"OUI"]
[133,"DOUAI","GRIFFON             ","DANIEL       ","1946-02-03","134137D",11,"R3",1.2512499999999998,null,"*",null,null,null,null,null,12,"R2",0.76404494382022481,null,"*",12,"R1",0.33023255813953484,null,"*",null,null,null,"OK",13107,"OUI"]
[134,"DOUAI","HACHE               ","MICHEL       ","1956-02-29","147117K",null,null,null,null,null,null,null,null,null,null,null,null,null,null,null,null,null,null,null,null,null,null,null,"OK",13107,"OUI"]
[135,"DOUAI","LASVAUX             ","JACKY        ","1956-04-28","016571J",null,null,null,null,null,10,"N2 47/2",8.6289999999999996,null,"*",null,null,null,null,null,12,"N2",0.59699999999999998,null,"*",null,null,null,"OK",13107,"OUI"]
[136,"DOUAI","LASVAUX Guy",null,null,null,10,"R3",1.6287499999999999,null,"*",null,null,null,null,null,null,null,null,null,null,null,null,null,null,null,null,null,null,"",13107]
[137,"DOUAI","LEGRAND             ","REMY         ","1939-10-02","101134U",12,"R3",2.09,null,"*",null,null,null,null,null,10,"R1",1.3370786516853932,null,"*",12,"N3",0.39302325581395353,null,"*",null,null,null,"OK",13107,"OUI"]
[138,"DOUAI","LOISEAU Guillaume",null,null,"017016M",10,"N3",8.6937499999999996,null,"*",10,"N2 47/2",5.3929999999999998,null,"*",10,"N3",1.9775280898876404,null,"*",11,"N3",0.44534883720930235,null,"*",null,null,null,"",13107]
[139,"DOUAI","MAGUIRE Maurice",null,null,"136012G",10,"R4",0.75374999999999992,null,"*",null,null,null,null,null,null,null,null,null,null,null,null,null,null,null,null,null,null,"",13107]
[140,"DOUAI","MALET               ","PIERRE       ","1947-07-21","016572K",null,null,null,null,null,10,"N2 47/2",4.056,null,null,10,"N3",2.0561797752808988,null,"*",12,"N2",0.41899999999999998,null,null,null,null,null,"OK",13107,"OUI"]
[141,"DOUAI","MASIERO             ","ANDRE        ","1942-11-22","016573L",12,"R2",3.4775,null,"*",11,"R1 42/2",3.1874999999999996,null,"*",11,"R1",1.651685393258427,null,"*",12,"N3",0.39534883720930236,null,"*",null,null,null,"OK",13107,"OUI"]
[142,"DOUAI","MASIERO Lorenzo",null,null,"016951Z",10,"R2",3.3149999999999999,null,"*",10,"R1 42/2",2.3975,null,"*",10,"R1",1.4269662921348314,null,"*",10,"N3",0.38372093023255816,null,"*",null,null,null,"",13107]
[143,"DOUAI","MOCQ                ","MICHEL       ","1930-09-13","121360S",11,"R4",0.86749999999999994,null,"*",null,null,null,null,null,null,null,null,null,null,null,null,null,null,null,null,null,null,"OK",13107,"OUI"]
[144,"DOUAI","MOTTON              ","CHRISTOPHE   ","1973-09-25","145640O",null,null,null,null,null,null,null,null,null,null,null,null,null,null,null,12,"N3",0.50232558139534889,null,"*",null,null,null,"OK",13107,"OUI"]
[145,"DOUAI","NOE                 ","MICKAEL      ","1972-12-28","136013H",12,"R3",1.5074999999999998,null,"*",null,null,null,null,null,12,"R2",0.8651685393258427,null,"*",12,"N3",0.37674418604651166,null,"*",null,null,null,"OK",13107,"OUI"]
[146,"DOUAI","PROVENZANO          ","ANTONIO      ","1962-05-11","016872Y",null,null,null,null,null,null,null,null,null,null,null,null,null,null,null,12,"N3",0.38372093023255816,null,"*",null,null,null,"OK",13107,"OUI"]
[147,"DOUAI","SAUERBACK           ","ELIANE       ","1940-05-21","138361P",null,null,null,null,null,null,null,null,null,null,null,null,null,null,null,null,null,null,null,null,null,null,null,"OK",13107,"OUI"]
[148,"DOUAI","SAVARY Jean",null,null,"017023T",10,"R3",1.5049999999999999,null,"*",null,null,null,null,null,null,null,null,null,null,null,null,null,null,null,null,null,null,"",13107]
[149,"DOUAI","SINTIVE             ","MARCEL       ","1929-03-23","017019P",null,null,null,null,null,null,null,null,null,null,null,null,null,null,null,null,null,null,null,null,null,null,null,"OK",13107,"OUI"]
[150,"DOUAI","STIEVET             ","GUY          ","1962-03-08","138362Q",12,"R2",2.6987499999999995,null,"*",12,"R1 42/2",3.0199999999999996,null,"*",12,"R1",1.2471910112359552,null,"*",12,"N3",0.45116279069767445,null,"*",null,null,null,"OK",13107,"OUI"]
[151,"DOUAI","TOURNON             ","YVES         ","1938-05-14","116595L",12,"R4",0.85750000000000004,null,"*",null,null,null,null,null,null,null,null,null,null,null,null,null,null,null,null,null,null,"OK",13107,"OUI"]
[152,"DOUAI","WANT David",null,null,null,8,"R4",1.0187499999999998,null,"*",null,null,null,null,null,null,null,null,null,null,null,null,null,null,null,null,null,null,"",13107]
[153,"DOUAI","ZAMYSLEWSKI         ","ALAIN        ","1949-12-28","017022S",12,"R1",4.0837499999999993,null,"*",10,"N3 42/2",4.4249999999999998,null,"*",9,"N3",2.1235955056179776,null,"*",9,"N2",0.40200000000000002,null,null,null,null,null,"OK",13107,"OUI"]
[154,"DUNKERQUE","ALLART              ","SEBASTIEN    ","1980-07-22","139038Q",null,null,null,null,null,null,null,null,null,null,null,null,null,null,null,null,null,null,null,null,null,null,null,"OK",13353,"OUI"]
[155,"DUNKERQUE","AMPEN               ","LAURENT      ","1980-10-06","146962R",null,null,null,null,null,null,null,null,null,null,null,null,null,null,null,null,null,null,null,null,null,null,null,"OK",13353,"OUI"]
[156,"DUNKERQUE","AU                  ","DUONG TU     ","1974-08-25","133129J",12,"N3",6.1999999999999993,null,"*",11,"R1 42/2",3.1424999999999996,null,"*",12,"R1",1.2359550561797754,null,"*",null,null,null,null,null,null,null,null,"OK",13353,"OUI"]
[157,"DUNKERQUE","BERA                ","ERIC         ","1955-01-03","145534M",null,null,null,null,null,null,null,null,null,null,null,null,null,null,null,null,null,null,null,null,null,null,null,"OK",13353,"OUI"]
[158,"DUNKERQUE","BLANQUART           ","ALAIN        ","1949-11-11","145533L",null,null,null,null,null,null,null,null,null,null,null,null,null,null,null,null,null,null,null,null,null,null,null,"OK",13353,"OUI"]
[159,"DUNKERQUE","BOUCLET             ","GILBERT      ","1938-03-08","107671F",null,null,null,null,null,null,null,null,null,null,null,null,null,null,null,null,null,null,null,null,null,null,null,"OK",13353,"OUI"]
[160,"DUNKERQUE","BRIOIT              ","ROGER        ","1948-03-05","138376E",12,"R4",0.96624999999999994,null,"*",null,null,null,null,null,12,"R2",0.6853932584269663,null,"*",null,null,null,null,null,null,null,null,"OK",13353,"OUI"]
[161,"DUNKERQUE","BUNIET              ","STEVE        ","1982-01-24","145535N",null,null,null,null,null,null,null,null,null,null,null,null,null,null,null,null,null,null,null,null,null,null,null,"OK",13353,"OUI"]
[162,"DUNKERQUE","CAISTIKER           ","OLIVIER      ","1969-08-26","145536O",null,null,null,null,null,null,null,null,null,null,null,null,null,null,null,null,null,null,null,null,null,null,null,"OK",13353,"OUI"]
[163,"DUNKERQUE","CALOONE René",null,null,null,8,"R3",1.2,null,"*",null,null,null,null,null,null,null,null,null,null,9,"R1",0.24883720930232558,null,null,null,null,null,"",13353]
[164,"DUNKERQUE","CARDON              ","DYLAN        ","1998-07-11","147943H",null,null,null,null,null,null,null,null,null,null,null,null,null,null,null,null,null,null,null,null,null,null,null,"OK",13353,"OUI"]
[165,"DUNKERQUE","CARLIER             ","ANTHONY      ","1997-09-04","145897L",null,null,null,null,null,null,null,null,null,null,null,null,null,null,null,null,null,null,null,null,null,null,null,"OK",13353,"OUI"]
[166,"DUNKERQUE","CARRU Bruno",null,null,null,8,"R4",1.0812499999999998,null,"*",null,null,null,null,null,10,"R2",0.8539325842696629,null,"*",11,"N3",0.29651162790697677,null,null,null,null,null,"",13353]
[167,"DUNKERQUE","CATARINO            ","THOMAS       ","2001-09-25","147945K",null,null,null,null,null,null,null,null,null,null,null,null,null,null,null,null,null,null,null,null,null,null,null,"OK",13353,"OUI"]
[168,"DUNKERQUE","CHRETIEN            ","MAXENCE      ","2001-09-10","147939D",null,null,null,null,null,null,null,null,null,null,null,null,null,null,null,null,null,null,null,null,null,null,null,"OK",13353,"OUI"]
[169,"DUNKERQUE","COLLETTE            ","QUENTIN      ","2001-05-23","147935Z",null,null,null,null,null,null,null,null,null,null,null,null,null,null,null,null,null,null,null,null,null,null,null,"OK",13353,"OUI"]
[170,"DUNKERQUE","COMAS Henri",null,null,null,11,"R2",2.6524999999999999,null,"*",9,"N3 42/2",3.5999999999999996,null,"*",null,null,null,null,null,null,null,null,null,null,null,null,null,"",13353]
[171,"DUNKERQUE","COMERE Eric",null,null,null,9,"R2",2.8912499999999999,null,"*",null,null,null,null,null,null,null,null,null,null,null,null,null,null,null,null,null,null,"",13353]
[172,"DUNKERQUE","COPPEY              ","CHRISTIAN    ","1953-01-04","122392K",null,null,null,null,null,null,null,null,null,null,null,null,null,null,null,9,"R1",0.29186046511627906,null,"*",null,null,null,"OK",13353,"OUI"]
[173,"DUNKERQUE","DEBOUDT             ","JEAN         ","1936-12-08","017264A",9,"R3",1.8299999999999998,null,"*",null,null,null,null,null,9,"R2",0.8202247191011236,null,"*",10,"N3",0.27790697674418602,null,null,null,null,null,"OK",13353,"OUI"]
[174,"DUNKERQUE","DEBUYSER            ","FRANCIS      ","1951-12-15","107672G",null,null,null,null,null,null,null,null,null,null,null,null,null,null,null,null,null,null,null,null,null,null,null,"OK",13353,"OUI"]
[175,"DUNKERQUE","DEBUYSER            ","FRANCOIS     ","1980-11-24","121452G",9,"R1",4.0350000000000001,null,"*",9,"R1 42/2",3.4449999999999994,null,"*",null,null,null,null,null,12,"N2",0.41299999999999998,null,null,null,null,null,"OK",13353,"OUI"]
[176,"DUNKERQUE","DEKEISTER           ","JEAN PIERRE  ","1948-04-25","139728E",null,null,null,null,null,null,null,null,null,null,null,null,null,null,null,null,null,null,null,null,null,null,null,"OK",13353,"OUI"]
[177,"DUNKERQUE","DELLIENNE           ","SEBASTIEN    ","1975-09-16","145537P",null,null,null,null,null,null,null,null,null,null,null,null,null,null,null,null,null,null,null,null,null,null,null,"OK",13353,"OUI"]
[178,"DUNKERQUE","DESBONNETS Clémentine",null,null,null,10,"R4",0.67125000000000001,null,"*",null,null,null,null,null,9,"R2",0.32584269662921345,null,"*",null,null,null,null,null,null,null,null,"",13353]
[179,"DUNKERQUE","DESCHAMPS           ","ALAIN        ","1956-09-27","146977H",null,null,null,null,null,null,null,null,null,null,null,null,null,null,null,null,null,null,null,null,null,null,null,"OK",13353,"OUI"]
[180,"DUNKERQUE","DESCHODT André",null,null,null,null,null,null,null,null,null,null,null,null,null,8,"R1",1.146067415730337,null,"*",null,null,null,null,null,null,null,null,"",13353]
[181,"DUNKERQUE","DESURMON            ","ANTOINE      ","1985-02-08","145893H",null,null,null,null,null,null,null,null,null,null,null,null,null,null,null,null,null,null,null,null,null,null,null,"OK",13353,"OUI"]
[182,"DUNKERQUE","DESWELLE            ","JEAN PIERRE  ","1945-01-11","016654O",12,"N3",9.0749999999999993,null,"*",12,"N3 42/2",5.2624999999999993,null,"*",12,"N1",2.23,null,null,11,"N1",0.66300000000000003,null,"*",null,null,null,"OK",13353,"OUI"]
[183,"DUNKERQUE","DEVULDER            ","TANGUY       ","2001-04-10","148055E",null,null,null,null,null,null,null,null,null,null,null,null,null,null,null,null,null,null,null,null,null,null,null,"OK",13353,"OUI"]
[184,"DUNKERQUE","DRYGLAS             ","JONATHAN     ","1988-08-21","145777V",null,null,null,null,null,null,null,null,null,null,null,null,null,null,null,null,null,null,null,null,null,null,null,"OK",13353,"OUI"]
[185,"DUNKERQUE","DUBREUIL            ","JEROME       ","1986-01-10","146964T",null,null,null,null,null,null,null,null,null,null,null,null,null,null,null,null,null,null,null,null,null,null,null,"OK",13353,"OUI"]
[186,"DUNKERQUE","DUJARDIN            ","OLIVIER      ","1971-04-16","146639Z",null,null,null,null,null,null,null,null,null,null,null,null,null,null,null,null,null,null,null,null,null,null,null,"OK",13353,"OUI"]
[187,"DUNKERQUE","FACKEURE            ","PIERRE       ","1927-10-06","016841T",null,null,null,null,null,null,null,null,null,null,null,null,null,null,null,null,null,null,null,null,null,null,null,"OK",13353,"OUI"]
[188,"DUNKERQUE","GHESQUIER           ","MICHAEL      ","1974-12-30","146965V",null,null,null,null,null,null,null,null,null,null,null,null,null,null,null,null,null,null,null,null,null,null,null,"OK",13353,"OUI"]
[189,"DUNKERQUE","GOSSART             ","JEAN YVES    ","1975-04-04","017161B",null,null,null,null,null,null,null,null,null,null,null,null,null,null,null,null,null,null,null,null,null,null,null,"OK",13353,"OUI"]
[190,"DUNKERQUE","GOURNAY             ","NICOLAS      ","1982-01-17","145545X",null,null,null,null,null,null,null,null,null,null,null,null,null,null,null,null,null,null,null,null,null,null,null,"OK",13353,"OUI"]
[191,"DUNKERQUE","GRZELCZAK           ","JACKY        ","1950-07-04","146638Y",null,null,null,null,null,null,null,null,null,null,null,null,null,null,null,null,null,null,null,null,null,null,null,"OK",13353,"OUI"]
[192,"DUNKERQUE","GUILBERT            ","REGIS        ","1938-04-10","116593J",12,"R3",1.1812499999999999,null,null,null,null,null,null,null,11,"R2",0.7415730337078652,null,"*",null,null,null,null,null,null,null,null,"OK",13353,"OUI"]
[193,"DUNKERQUE","HAN                 ","JIACHENG     ","1984-01-08","146966W",null,null,null,null,null,null,null,null,null,null,null,null,null,null,null,null,null,null,null,null,null,null,null,"OK",13353,"OUI"]
[194,"DUNKERQUE","HECQUET             ","DANIEL       ","1950-04-05","136113D",12,"R4",1.0487499999999998,null,"*",null,null,null,null,null,12,"R2",0.5617977528089888,null,"*",null,null,null,null,null,null,null,null,"OK",13353,"OUI"]
[195,"DUNKERQUE","HERVIOU             ","AUDE         ","2000-05-04","147942G",null,null,null,null,null,null,null,null,null,null,null,null,null,null,null,null,null,null,null,null,null,null,null,"OK",13353,"OUI"]
[196,"DUNKERQUE","HOCQUET             ","MICHEL       ","1949-06-08","146967X",null,null,null,null,null,null,null,null,null,null,null,null,null,null,null,null,null,null,null,null,null,null,null,"OK",13353,"OUI"]
[197,"DUNKERQUE","HUBICHE             ","HANS         ","1979-07-08","146963S",null,null,null,null,null,null,null,null,null,null,null,null,null,null,null,null,null,null,null,null,null,null,null,"OK",13353,"OUI"]
[198,"DUNKERQUE","KAYA                ","TUGRUL       ","1982-04-10","130654E",null,null,null,null,null,null,null,null,null,null,null,null,null,null,null,12,"N3",0.48488372093023252,null,"*",null,null,null,"OK",13353,"OUI"]
[199,"DUNKERQUE","KULISZ              ","DANIEL       ","1957-03-28","145547Z",null,null,null,null,null,null,null,null,null,null,null,null,null,null,null,null,null,null,null,null,null,null,null,"OK",13353,"OUI"]
[200,"DUNKERQUE","KULISZ              ","REMY         ","2000-12-31","145895J",null,null,null,null,null,null,null,null,null,null,null,null,null,null,null,null,null,null,null,null,null,null,null,"OK",13353,"OUI"]
[201,"DUNKERQUE","LAGATIE Clémence",null,null,null,10,"R4",0.82125000000000004,null,"*",null,null,null,null,null,null,null,null,null,null,null,null,null,null,null,null,null,null,"",13353]
[202,"DUNKERQUE","LANVIN              ","JEAN LUC     ","1955-05-12","114979H",null,null,null,null,null,null,null,null,null,null,null,null,null,null,null,null,null,null,null,null,null,null,null,"OK",13353,"OUI"]
[203,"DUNKERQUE","LANVIN              ","YANN         ","1977-07-07","145546Y",null,null,null,null,null,null,null,null,null,null,null,null,null,null,null,null,null,null,null,null,null,null,null,"OK",13353,"OUI"]
[204,"DUNKERQUE","LATRECHE            ","MORGAN       ","1999-04-02","147946L",null,null,null,null,null,null,null,null,null,null,null,null,null,null,null,null,null,null,null,null,null,null,null,"OK",13353,"OUI"]
[205,"DUNKERQUE","LECAT               ","HENRI        ","1923-06-27","016675J",null,null,null,null,null,null,null,null,null,null,12,"R2",0.93258426966292129,null,"*",null,null,null,null,null,null,null,null,"OK",13353,"OUI"]
[206,"DUNKERQUE","LEFORT              ","JACQUES      ","1936-07-08","016845X",null,null,null,null,null,null,null,null,null,null,null,null,null,null,null,null,null,null,null,null,null,null,null,"OK",13353,"OUI"]
[207,"DUNKERQUE","LEGOUILL            ","CAROLINE     ","1974-09-28","148141Y",null,null,null,null,null,null,null,null,null,null,null,null,null,null,null,null,null,null,null,null,null,null,null,"OK",13353,"OUI"]
[208,"DUNKERQUE","LEPINOIS            ","NATHAN       ","2000-03-27","147196W",null,null,null,null,null,null,null,null,null,null,null,null,null,null,null,null,null,null,null,null,null,null,null,"OK",13353,"OUI"]
[209,"DUNKERQUE","LEPINOIS            ","PATRICE      ","1970-08-02","147959A",null,null,null,null,null,null,null,null,null,null,null,null,null,null,null,null,null,null,null,null,null,null,null,"OK",13353,"OUI"]
[210,"DUNKERQUE","LOISEL              ","MANUEL       ","1997-11-30","147936A",null,null,null,null,null,null,null,null,null,null,null,null,null,null,null,null,null,null,null,null,null,null,null,"OK",13353,"OUI"]
[211,"DUNKERQUE","LOOCK               ","JULIEN       ","1938-11-10","111391H",null,null,null,null,null,null,null,null,null,null,null,null,null,null,null,null,null,null,null,null,null,null,null,"OK",13353,"OUI"]
[212,"DUNKERQUE","MARCHYLLIE          ","MARCEL       ","1930-10-15","016660U",null,null,null,null,null,null,null,null,null,null,null,null,null,null,null,null,null,null,null,null,null,null,null,"OK",13353,"OUI"]
[213,"DUNKERQUE","MARECHAL            ","FRANCIS      ","1945-01-27","016842U",8,"R3",1.6212499999999999,null,"*",null,null,null,null,null,null,null,null,null,null,null,null,null,null,null,null,null,null,"OK",13353,"OUI"]
[214,"DUNKERQUE","MORICE              ","MICHEL       ","1947-12-08","107677L",null,null,null,null,null,null,null,null,null,null,null,null,null,null,null,null,null,null,null,null,null,null,null,"OK",13353,"OUI"]
[215,"DUNKERQUE","NEVEU               ","FRANCOIS     ","1980-10-22","147197X",null,null,null,null,null,null,null,null,null,null,null,null,null,null,null,null,null,null,null,null,null,null,null,"OK",13353,"OUI"]
[216,"DUNKERQUE","PECQUEUX            ","EMOS         ","1968-07-17","146132M",null,null,null,null,null,null,null,null,null,null,null,null,null,null,null,null,null,null,null,null,null,null,null,"OK",13353,"OUI"]
[217,"DUNKERQUE","PECQUEUX            ","RENE         ","1944-05-17","145539R",null,null,null,null,null,null,null,null,null,null,null,null,null,null,null,null,null,null,null,null,null,null,null,"OK",13353,"OUI"]
[218,"DUNKERQUE","PESSEMIER           ","KEVIN        ","2000-08-31","147938C",null,null,null,null,null,null,null,null,null,null,null,null,null,null,null,null,null,null,null,null,null,null,null,"OK",13353,"OUI"]
[219,"DUNKERQUE","POTIER              ","LUKA         ","2001-03-01","147944J",null,null,null,null,null,null,null,null,null,null,null,null,null,null,null,null,null,null,null,null,null,null,null,"OK",13353,"OUI"]
[220,"DUNKERQUE","PRUGNIERES          ","VALENTYN     ","2000-07-24","145901P",null,null,null,null,null,null,null,null,null,null,null,null,null,null,null,null,null,null,null,null,null,null,null,"OK",13353,"OUI"]
[221,"DUNKERQUE","PRUVOST             ","CHARLOTTE    ","1965-03-28","146133N",null,null,null,null,null,null,null,null,null,null,null,null,null,null,null,null,null,null,null,null,null,null,null,"OK",13353,"OUI"]
[222,"DUNKERQUE","RABAS               ","GEORGES      ","1931-07-03","016667B",null,null,null,null,null,null,null,null,null,null,null,null,null,null,null,null,null,null,null,null,null,null,null,"OK",13353,"OUI"]
[223,"DUNKERQUE","SEINGIER            ","JEAN CLAUDE  ","1940-12-19","016671F",12,"R2",3.0612499999999998,null,"*",8,"R1 42/2",3.1937500000000001,null,"*",12,"R1",1.4157303370786516,null,"*",12,"N3",0.42674418604651165,null,"*",null,null,null,"OK",13353,"OUI"]
[224,"DUNKERQUE","SKORDILIS           ","CHRISTO      ","1962-06-03","016782M",null,null,null,null,null,null,null,null,null,null,11,"R1",1.0674157303370786,null,"*",12,"N3",0.47209302325581398,null,"*",null,null,null,"OK",13353,"OUI"]
[225,"DUNKERQUE","SZLEZAK             ","SYLVAIN      ","1998-12-23","148054D",null,null,null,null,null,null,null,null,null,null,null,null,null,null,null,null,null,null,null,null,null,null,null,"OK",13353,"OUI"]
[226,"DUNKERQUE","THOORIS             ","LAURENT      ","1968-09-03","023858Q",null,null,null,null,null,null,null,null,null,null,null,null,null,null,null,null,null,null,null,null,null,null,null,"OK",13353,"OUI"]
[227,"DUNKERQUE","TOUSSAINT           ","GERAUD       ","1975-12-21","145541T",null,null,null,null,null,null,null,null,null,null,null,null,null,null,null,null,null,null,null,null,null,null,null,"OK",13353,"OUI"]
[228,"DUNKERQUE","TURLUTTE            ","ROBERT       ","1933-12-04","016783N",null,null,null,null,null,null,null,null,null,null,null,null,null,null,null,null,null,null,null,null,null,null,null,"OK",13353,"OUI"]
[229,"DUNKERQUE","VANBALINGHEM        ","PHILIPPE     ","1949-06-09","145542U",null,null,null,null,null,null,null,null,null,null,null,null,null,null,null,null,null,null,null,null,null,null,null,"OK",13353,"OUI"]
[230,"DUNKERQUE","VANDAELE            ","JEAN LOUIS   ","1957-10-19","145543V",null,null,null,null,null,null,null,null,null,null,null,null,null,null,null,null,null,null,null,null,null,null,null,"OK",13353,"OUI"]
[231,"DUNKERQUE","VANDENBROUCQUE      ","MICHEL       ","1926-02-08","016896W",null,null,null,null,null,null,null,null,null,null,null,null,null,null,null,null,null,null,null,null,null,null,null,"OK",13353,"OUI"]
[232,"DUNKERQUE","VANGHELUWEN         ","ALBERT       ","1920-01-01","139727D",null,null,null,null,null,null,null,null,null,null,null,null,null,null,null,null,null,null,null,null,null,null,null,"OK",13353,"OUI"]
[233,"DUNKERQUE","VANOOSTEN           ","PIERRE       ","1931-12-13","016934I",null,null,null,null,null,null,null,null,null,null,null,null,null,null,null,null,null,null,null,null,null,null,null,"OK",13353,"OUI"]
[234,"DUNKERQUE","VIDAL               ","KEVIN        ","1989-03-27","147112E",null,null,null,null,null,null,null,null,null,null,null,null,null,null,null,null,null,null,null,null,null,null,null,"OK",13353,"OUI"]
[235,"DUNKERQUE","VISSE               ","LOIC         ","1994-01-05","148195G",null,null,null,null,null,null,null,null,null,null,null,null,null,null,null,null,null,null,null,null,null,null,null,"OK",13353,"OUI"]
[236,"DUNKERQUE","WAGON               ","MATHIEU      ","1995-01-11","144616E",null,null,null,null,null,null,null,null,null,null,null,null,null,null,null,null,null,null,null,null,null,null,null,"OK",13353,"OUI"]
[237,"DUNKERQUE","ZHOU                ","KAIGANG      ","1987-12-07","146961Q",null,null,null,null,null,null,null,null,null,null,null,null,null,null,null,null,null,null,null,null,null,null,null,"OK",13353,"OUI"]
[238,"DUNKERQUE","ZIEMIANIN           ","CORENTIN     ","1998-02-11","148140X",null,null,null,null,null,null,null,null,null,null,null,null,null,null,null,null,null,null,null,null,null,null,null,"OK",13353,"OUI"]
[239,"ESTAIRES","CARLIER             ","YVES ANDRE   ","1962-06-11","141359X",12,"R4",0.97124999999999995,null,"*",null,null,null,null,null,12,"R2",0.550561797752809,null,"*",null,null,null,null,null,null,null,null,"OK",13252,"OUI"]
[240,"ESTAIRES","CAULIER             ","PATRICK      ","1957-09-26","147861T",null,null,null,null,null,null,null,null,null,null,null,null,null,null,null,null,null,null,null,null,null,null,null,"OK",13252,"OUI"]
[241,"ESTAIRES","CUNY                ","OLIVIER      ","1969-05-07","141360Y",12,"R3",1.5062500000000001,null,"*",null,null,null,null,null,null,null,null,null,null,null,null,null,null,null,null,null,null,"OK",13252,"OUI"]
[242,"ESTAIRES","DELABARRE           ","YVES         ","1957-05-31","147809M",null,null,null,null,null,null,null,null,null,null,null,null,null,null,null,null,null,null,null,null,null,null,null,"OK",13252,"OUI"]
[243,"ESTAIRES","DJELOUAH            ","GEOFFREY     ","1984-05-06","016921V",12,"R2",3.1162499999999995,null,"*",null,null,null,null,null,12,"R1",1.2471910112359552,null,"*",null,null,null,null,null,null,null,null,"OK",13252,"OUI"]
[244,"ESTAIRES","GRYSON              ","DIRK         ","1953-07-16","147433D",null,null,null,null,null,null,null,null,null,null,null,null,null,null,null,null,null,null,null,null,null,null,null,"OK",13252,"OUI"]
[245,"ESTAIRES","HANNEDOUCHE         ","BERNARD      ","1950-05-10","141361Z",12,"R3",1.9312499999999999,null,"*",null,null,null,null,null,12,"R1",1.146067415730337,null,"*",null,null,null,null,null,null,null,null,"OK",13252,"OUI"]
[246,"ESTAIRES","HOUCKE              ","PIERRE       ","1945-02-04","145525D",12,"R4",0.96124999999999994,null,"*",null,null,null,null,null,12,"R2",0.61797752808988771,null,"*",null,null,null,null,null,null,null,null,"OK",13252,"OUI"]
[247,"ESTAIRES","MARCHAL             ","THIERRY      ","1964-05-30","147434E",null,null,null,null,null,null,null,null,null,null,null,null,null,null,null,null,null,null,null,null,null,null,null,"OK",13252,"OUI"]
[248,"ESTAIRES","MOURIKS             ","FRANCINE     ","1950-11-08","141362A",12,"R4",0.83374999999999999,null,"*",null,null,null,null,null,12,"R2",0.64044943820224709,null,"*",null,null,null,null,null,null,null,null,"OK",13252,"OUI"]
[249,"ESTAIRES","MOURIKS             ","MICHEL       ","1944-06-05","141363B",null,null,null,null,null,null,null,null,null,null,null,null,null,null,null,null,null,null,null,null,null,null,null,"OK",13252,"OUI"]
[250,"ESTAIRES","REGNIER             ","PATRICK      ","1971-12-25","016865R",12,"N3",6.8425000000000002,null,"*",12,"N3 42/2",4.3887499999999999,null,"*",12,"N3",1.9213483146067416,null,"*",null,null,null,null,null,null,null,null,"OK",13252,"OUI"]
[251,"ESTAIRES","WAEGEMACKER         ","ALAIN        ","1959-03-07","141365D",12,"R2",3.9187499999999997,null,"*",null,null,null,null,null,null,null,null,null,null,null,null,null,null,null,null,null,null,"OK",13252,"OUI"]
[252,"FACHES THUMESNIL","BASTENIER           ","JEAN         ","1969-11-22","017360S",12,"R2",3.97,null,"*",12,"R1 42/2",3.3674999999999997,null,"*",12,"R1",1.449438202247191,null,"*",11,"R1",0.3174418604651163,null,"*",null,null,null,"OK",13249,"OUI"]
[253,"FACHES THUMESNIL","BASTENIER Medhi",null,null,null,9,"R2",2.5749999999999997,null,"*",null,null,null,null,null,9,"R1",1.0561797752808988,null,"*",9,"N3",0.36744186046511629,null,"*",null,null,null,"",13249]
[254,"FACHES THUMESNIL","BETREMIEUX Albert",null,null,null,10,"R3",1.9212499999999999,null,"*",null,null,null,null,null,10,"R1",1.101123595505618,null,"*",10,"R1",0.34418604651162787,null,"*",null,null,null,"",13249]
[255,"FACHES THUMESNIL","BLIN                ","JEAN         ","1927-07-09","016627N",10,"R3",1.2324999999999999,null,"*",null,null,null,null,null,null,null,null,null,null,null,null,null,null,null,null,null,null,"OK",13249,"OUI"]
[256,"FACHES THUMESNIL","BON                 ","VINCENT      ","1964-12-19","017044O",null,null,null,null,null,null,null,null,null,null,null,null,null,null,null,null,null,null,null,null,null,null,null,"OK",13249,"OUI"]
[257,"FACHES THUMESNIL","BONTINCK Didier",null,null,null,11,"R3",1.9275,null,"*",null,null,null,null,null,11,"R1",1.0786516853932584,null,"*",11,"R1",0.35813953488372091,null,"*",null,null,null,"",13249]
[258,"FACHES THUMESNIL","BOULARD             ","DANIEL       ","1942-07-01","129049L",null,null,null,null,null,null,null,null,null,null,null,null,null,null,null,null,null,null,null,null,null,null,null,"OK",13249,"OUI"]
[259,"FACHES THUMESNIL","BOULET Serge",null,null,"130198Q",12,"R3",2.1687500000000002,null,"*",null,null,null,null,null,10,"R1",1.0449438202247192,null,"*",11,"N3",0.39302325581395353,null,"*",null,null,null,"",13249]
[260,"FACHES THUMESNIL","CAPPELLE Bernard",null,null,null,10,"R3",1.6587499999999999,null,"*",null,null,null,null,null,null,null,null,null,null,null,null,null,null,null,null,null,null,"",13249]
[261,"FACHES THUMESNIL","CASIER              ","JEAN         ","1932-12-14","017117J",null,null,null,null,null,null,null,null,null,null,null,null,null,null,null,null,null,null,null,null,null,null,null,"OK",13249,"OUI"]
[262,"FACHES THUMESNIL","CLYNCKE             ","JEAN JACQUES ","1951-10-02","017038I",null,null,null,null,null,null,null,null,null,null,9,"R1",1.1348314606741572,null,"*",12,"N3",0.39418604651162792,null,"*",null,null,null,"OK",13249,"OUI"]
[263,"FACHES THUMESNIL","DAMBRUNE            ","CLAUDE       ","1950-05-26","133077J",12,"R3",2.05375,null,"*",null,null,null,null,null,10,"R2",0.9550561797752809,null,"*",null,null,null,null,null,null,null,null,"OK",13249,"OUI"]
[264,"FACHES THUMESNIL","DECONINCK           ","FRANKY       ","1964-03-22","136119J",12,"N1",8.0380000000000003,null,null,11,"N2 47/2",5.3760000000000003,null,"*",null,null,null,null,null,null,null,null,null,null,null,null,null,"OK",13249,"OUI"]
[265,"FACHES THUMESNIL","DEGRAVE             ","FRANCK       ","1963-10-24","017119L",12,"R3",1.4974999999999998,null,"*",null,null,null,null,null,12,"R1",0.9550561797752809,null,null,12,"R1",0.34186046511627904,null,"*",null,null,null,"OK",13249,"OUI"]
[266,"FACHES THUMESNIL","DELEFORGE           ","DANIEL       ","1940-03-16","017063H",null,null,null,null,null,null,null,null,null,null,8,"R1",1.0337078651685394,null,"*",null,null,null,null,null,null,null,null,"OK",13249,"OUI"]
[267,"FACHES THUMESNIL","DELVIGNE Romain",null,null,null,8,"R3",1.3925000000000001,null,"*",null,null,null,null,null,null,null,null,null,null,8,"R1",0.30930232558139537,null,"*",null,null,null,"",13249]
[268,"FACHES THUMESNIL","DELVILLE            ","SERGE        ","1934-11-02","017060E",null,null,null,null,null,null,null,null,null,null,null,null,null,null,null,12,"N2",0.46100000000000002,null,"*",null,null,null,"OK",13249,"OUI"]
[269,"FACHES THUMESNIL","DERACHE             ","MICHEL       ","1954-09-15","016592E",12,"R2",2.9399999999999995,null,"*",null,null,null,null,null,null,null,null,null,null,null,null,null,null,null,null,null,null,"OK",13249,"OUI"]
[270,"FACHES THUMESNIL","DESCRYVE            ","GUY          ","1946-09-16","133079L",9,"R4",0.93374999999999997,null,"*",null,null,null,null,null,null,null,null,null,null,null,null,null,null,null,null,null,null,"OK",13249,"OUI"]
[271,"FACHES THUMESNIL","DESMETTRE Bruno",null,null,null,10,"R1",3.7262499999999998,null,null,10,"N3 42/2",4.2874999999999996,null,"*",10,"N3",2.2134831460674156,null,"*",12,"N2",0.48399999999999999,null,"*",null,null,null,"",13249]
[272,"FACHES THUMESNIL","DESURMONT Marc",null,null,null,11,"R3",1.7050000000000001,null,"*",null,null,null,null,null,9,"R1",1,null,"*",null,null,null,null,null,null,null,null,"",13249]
[273,"FACHES THUMESNIL","DORARD              ","STEVE        ","1983-01-02","015585L",12,"Master",104.36799999999999,null,"*",12,"Masters 47/2",26.736000000000001,null,"*",12,"Master",5.97,null,"*",12,"N1",0.69299999999999995,null,"*",null,null,null,"OK",13249,"OUI"]
[274,"FACHES THUMESNIL","FAMCHON Hervé",null,null,null,null,null,null,null,null,11,"Masters 47/2",26.928999999999998,null,"*",null,null,null,null,null,null,null,null,null,null,null,null,null,"",13249,"OUI"]
[275,"FACHES THUMESNIL","FIQUET              ","PATRICK      ","1962-08-10","109119X",12,"R2",2.7774999999999999,null,"*",null,null,null,null,null,12,"R1",1.348314606741573,null,"*",null,null,null,null,null,null,null,null,"OK",13249]
[276,"FACHES THUMESNIL","GAUQUIE             ","SERGE        ","1947-05-10","017116I",12,"N3",5.4024999999999999,null,null,12,"N2 47/2",4.5469999999999997,null,null,12,"N3",2.0674157303370788,null,"*",12,"N3",0.4755813953488372,null,"*",null,null,null,"OK",13249,"OUI"]
[277,"FACHES THUMESNIL","GHEVART             ","JEAN         ","1956-01-29","141508Q",null,null,null,null,null,null,null,null,null,null,null,null,null,null,null,null,null,null,null,null,null,null,null,"OK",13249,"OUI"]
[278,"FACHES THUMESNIL","HANSKENS Georges",null,null,null,null,null,null,null,null,null,null,null,null,null,null,null,null,null,null,9,"R2",0.20930232558139533,null,"*",null,null,null,"",13249,"OUI"]
[279,"FACHES THUMESNIL","HAUTEKEUR           ","GERARD       ","1950-06-08","133026K",11,"R4",0.83750000000000002,null,"*",null,null,null,null,null,null,null,null,null,null,null,null,null,null,null,null,null,null,"OK",13249]
[280,"FACHES THUMESNIL","JACQUES             ","CELINE       ","1982-04-19","021080U",12,"R1",3.9750000000000001,null,"*",null,null,null,null,null,null,null,null,null,null,12,"N3",0.45581395348837211,null,"*",null,null,null,"OK",13249,"OUI"]
[281,"FACHES THUMESNIL","LEZIS Alphonse",null,null,null,8,"R1",4.1849999999999996,null,"*",null,null,null,null,null,10,"R1",1.4382022471910112,null,"*",9,"N3",0.42441860465116277,null,"*",null,null,null,"",13249,"OUI"]
[282,"FACHES THUMESNIL","LORTHIOIR           ","JEAN LUC     ","1954-05-28","129054Q",12,"R4",1.0799999999999998,null,"*",null,null,null,null,null,8,"R2",0.8202247191011236,null,"*",12,"R1",0.3116279069767442,null,"*",null,null,null,"OK",13249]
[283,"FACHES THUMESNIL","MANIEZ              ","PIERRE       ","1933-05-17","136120K",null,null,null,null,null,null,null,null,null,null,null,null,null,null,null,null,null,null,null,null,null,null,null,"OK",13249,"OUI"]
[284,"FACHES THUMESNIL","MATTA               ","DANIEL       ","1946-10-20","136121L",null,null,null,null,null,null,null,null,null,null,null,null,null,null,null,null,null,null,null,null,null,null,null,"OK",13249,"OUI"]
[285,"FACHES THUMESNIL","MOREL               ","EMILE        ","1932-02-24","017045P",12,"R4",1.0225,null,"*",null,null,null,null,null,null,null,null,null,null,null,null,null,null,null,null,null,null,"OK",13249,"OUI"]
[286,"FACHES THUMESNIL","MOREL Albert",null,null,null,10,"R3",1.3587499999999999,null,"*",null,null,null,null,null,null,null,null,null,null,null,null,null,null,null,null,null,null,"",13249,"OUI"]
[287,"FACHES THUMESNIL","PELHATE Gérard",null,null,null,12,"R2",3.01,null,"*",12,"R1 42/2",2.6612499999999999,null,"*",null,null,null,null,null,null,null,null,null,null,null,null,null,"",13249]
[288,"FACHES THUMESNIL","PETIT Joël",null,null,null,8,"R2",2.8174999999999999,null,"*",null,null,null,null,null,8,"R1",1.3707865168539326,null,"*",null,null,null,null,null,null,null,null,"",13249]
[289,"FACHES THUMESNIL","PETTINATO           ","GIOVANNI     ","1950-12-14","016999V",12,"R1",4.1574999999999998,null,"*",12,"R1 42/2",3.0112499999999995,null,"*",11,"R1",1.1235955056179776,null,"*",11,"R1",0.34534883720930232,null,"*",null,null,null,"OK",13249]
[290,"FACHES THUMESNIL","PLANCQ              ","FRANCIS      ","1937-07-17","110603Z",12,"R2",2.94875,null,"*",12,"R1 42/2",2.2824999999999998,null,"*",10,"R1",1.2696629213483144,null,"*",null,null,null,null,null,null,null,null,"OK",13249,"OUI"]
[291,"FACHES THUMESNIL","POIRIER             ","OLIVIER      ","1961-09-23","133080M",10,"R3",1.2062499999999998,null,"*",null,null,null,null,null,10,"R2",0.6741573033707865,null,"*",12,"R1",0.34651162790697676,null,"*",null,null,null,"OK",13249,"OUI"]
[292,"FACHES THUMESNIL","ROPITAL             ","JEAN MARIE   ","1947-02-04","138363R",null,null,null,null,null,null,null,null,null,null,null,null,null,null,null,null,null,null,null,null,null,null,null,"OK",13249,"OUI"]
[293,"FACHES THUMESNIL","SZYBOWICZ           ","LAURENT      ","1968-03-07","017252O",12,"N1",11.579000000000001,null,"*",12,"N2 47/2",4.109,null,null,11,"N3",2.0898876404494384,null,"*",8,"N3",0.47674418604651159,null,"*",null,null,null,"OK",13249,"OUI"]
[294,"FACHES THUMESNIL","THERY               ","JEAN PIERRE  ","1951-11-22","143928S",12,"R3",1.6437499999999998,null,"*",null,null,null,null,null,null,null,null,null,null,11,"R1",0.30348837209302326,null,"*",null,null,null,"OK",13249,"OUI"]
[295,"FACHES THUMESNIL","TURBANT André",null,null,null,11,"R3",1.54375,null,"*",null,null,null,null,null,null,null,null,null,null,11,"R2",0.24651162790697675,null,"*",null,null,null,"",13249,"OUI"]
[296,"FACHES THUMESNIL","VANLERBERGHE Nicolas",null,null,null,11,"R1",4.0824999999999996,null,"*",8,"R1 42/2",3.4112499999999999,null,"*",11,"N3",1.752808988764045,null,"*",8,"N3",0.37674418604651166,null,"*",null,null,null,"",13249]
[297,"FACHES THUMESNIL","VERDIERE            ","PIERRE       ","1941-06-02","133081N",null,null,null,null,null,null,null,null,null,null,null,null,null,null,null,null,null,null,null,null,null,null,null,"OK",13249]
[298,"FACHES THUMESNIL","WALLART             ","JEAN CHARLES ","1966-11-24","017219H",8,"R3",1.99,null,"*",null,null,null,null,null,null,null,null,null,null,12,"N3",0.38255813953488377,null,"*",null,null,null,"OK",13249,"OUI"]
[299,"GRANDE-SYNTHE","BLOT                ","DANIEL       ","1939-09-20","017160A",null,null,null,null,null,null,null,null,null,null,12,"R2",0.7415730337078652,null,"*",11,"R1",0.28837209302325584,null,"*",null,null,null,"OK",13249,"OUI"]
[300,"GRANDE-SYNTHE","CAPPELAERE          ","ROGER        ","1949-11-16","131434E",null,null,null,null,null,null,null,null,null,null,null,null,null,null,null,null,null,null,null,null,null,null,null,"OK",13365,"OUI"]
[301,"GRANDE-SYNTHE","DEGARDIN            ","BERNARD      ","1950-09-20","017153T",null,null,null,null,null,null,null,null,null,null,null,null,null,null,null,null,null,null,null,null,null,null,null,"OK",13365,"OUI"]
[302,"GRANDE-SYNTHE","DELPIERRE Alexandre",null,null,"137053H",12,"R2",2.2087499999999998,null,null,null,null,null,null,null,12,"R1",1.101123595505618,null,"*",12,"R1",0.35465116279069769,null,"*",null,null,null,"",13365,"OUI"]
[303,"GRANDE-SYNTHE","DIABI               ","GILLES       ","1959-03-09","106347H",11,"R2",3.3462499999999999,null,"*",null,null,null,null,null,null,null,null,null,null,null,null,null,null,null,null,null,null,"OK",13365]
[304,"GRANDE-SYNTHE","LEFEBVRE            ","VINCENT      ","1968-02-08","103007V",12,"N3",8.99,null,"*",12,"N2 47/2",5.0359999999999996,null,"*",12,"N3",2.404494382022472,null,"*",null,null,null,null,null,null,null,null,"OK",13365,"OUI"]
[305,"GRANDE-SYNTHE","LUBREZ              ","PIERRE       ","1942-03-03","017148O",12,"R3",1.9350000000000001,null,"*",null,null,null,null,null,12,"R1",1.0112359550561798,null,"*",12,"R1",0.35581395348837208,null,"*",null,null,null,"OK",13365,"OUI"]
[306,"GRANDE-SYNTHE","MASTALERZ Pascal",null,null,"103011Z",12,"R2",2.8462499999999999,null,"*",10,"R1 42/2",3.36625,null,"*",12,"R1",1.2134831460674158,null,"*",12,"N3",0.39883720930232563,null,"*",null,null,null,"",13365,"OUI"]
[307,"GRANDE-SYNTHE","MERVAILLE Jean",null,null,"103012A",12,"R3",1.80125,null,"*",null,null,null,null,null,12,"R1",1.2247191011235956,null,"*",12,"N3",0.50116279069767444,null,"*",null,null,null,"OK",13365]
[308,"GRANDE-SYNTHE","NORBERT             ","GEORGES      ","1951-11-19","128883B",12,"R3",1.4000000000000001,null,"*",null,null,null,null,null,12,"R2",0.92134831460674149,null,"*",null,null,null,null,null,null,null,null,"OK",13365,"OUI"]
[309,"GRANDE-SYNTHE","PARANT Camille",null,null,"136925J",11,"R1",4.7549999999999999,null,"*",11,"N3 42/2",4.9775,null,"*",null,null,null,null,null,12,"N3",0.4755813953488372,null,"*",null,null,null,"",13365,"OUI"]
[310,"GRANDE-SYNTHE","POLLAERT            ","MICHEL       ","1945-07-04","017397D",null,null,null,null,null,null,null,null,null,null,12,"R2",0.8314606741573034,null,"*",12,"R1",0.34302325581395349,null,"*",null,null,null,"OK",13365]
[311,"GRANDE-SYNTHE","SAINTIER            ","ALAIN        ","1939-09-18","017152S",null,null,null,null,null,null,null,null,null,null,null,null,null,null,null,null,null,null,null,null,null,null,null,"OK",13365,"OUI"]
[312,"GRANDE-SYNTHE","VAN MELLAERTS       ","XAVIER       ","1952-12-31","130195N",null,null,null,null,null,null,null,null,null,null,null,null,null,null,null,null,null,null,null,null,null,null,null,"OK",13365,"OUI"]
[313,"GRANDE-SYNTHE","VANUXEM             ","JEAN         ","1955-10-05","017399F",8,"N3",6.86,null,"*",null,null,null,null,null,8,"R1",1.4157303370786516,null,"*",null,null,null,null,null,null,null,null,"OK",13365,"OUI"]
[314,"GRANDE-SYNTHE","VIENNE              ","MICHEL       ","1938-02-08","017371D",12,"R3",1.7237499999999999,null,"*",null,null,null,null,null,12,"R1",0.93258426966292129,null,null,12,"R1",0.29418604651162794,null,"*",null,null,null,"OK",13365,"Oui"]
[315,"GRANDE-SYNTHE","WYBAUW              ","DANIEL       ","1950-06-01","130196O",null,null,null,null,null,null,null,null,null,null,null,null,null,null,null,null,null,null,null,null,null,null,null,"OK",13365,"OUI"]
[316,"GRAVELINES","BARBET              ","BERNARD      ","1951-05-13","143075X",null,null,null,null,null,null,null,null,null,null,null,null,null,null,null,null,null,null,null,null,null,null,null,"OK",13365,"OUI"]
[317,"GRAVELINES","BEHAGUE             ","ANDRE        ","1929-04-29","016678M",null,null,null,null,null,null,null,null,null,null,null,null,null,null,null,10,"N3",0.36511627906976746,null,"*",null,null,null,"OK",13355,"OUI"]
[318,"GRAVELINES","BRAZY               ","MANUEL       ","1953-11-11","124478Q",9,"R1",3.6049999999999995,null,null,8,"N3 42/2",3.6662499999999998,null,"*",12,"R1",1.6629213483146068,null,"*",12,"N3",0.44767441860465118,null,"*",null,null,null,"OK",13355,"OUI"]
[319,"GRAVELINES","BUYLE               ","STANY        ","1960-03-21","121406M",null,null,null,null,null,null,null,null,null,null,null,null,null,null,null,12,"N1",0.79400000000000004,null,"*",null,null,null,"OK",13355,"OUI"]
[320,"GRAVELINES","CAZALET Francis",null,null,null,null,null,null,null,null,null,null,null,null,null,10,"R1",1.3146067415730336,null,"*",12,"N3",0.48488372093023252,null,"*",null,null,null,"",13355,"OUI"]
[321,"GRAVELINES","DANIELS             ","RONALD       ","1966-01-29","133107N",null,null,null,null,null,null,null,null,null,null,null,null,null,null,null,null,null,null,null,null,null,null,null,"OK",13355]
[322,"GRAVELINES","DAVID Isaïe",null,null,null,8,"R3",1.5599999999999998,null,"*",null,null,null,null,null,null,null,null,null,null,null,null,null,null,null,null,null,null,"",13355,"OUI"]
[323,"GRAVELINES","DEVOS               ","JACKIE       ","1944-12-06","121408O",12,"R2",3.7849999999999997,null,"*",10,"N3 42/2",4.3125,null,"*",12,"N1",1.66,null,null,12,"N2",0.49299999999999999,null,"*",null,null,null,"OK",13355]
[324,"GRAVELINES","DEWULF              ","DOMINIQUE    ","1947-02-26","116592I",12,"N3",9.8312499999999989,null,"*",12,"N3 42/2",5.7012499999999999,null,"*",11,"N3",2.1348314606741572,null,"*",12,"N3",0.51976744186046508,null,"*",null,null,null,"OK",13355,"OUI"]
[325,"GRAVELINES","DIOT                ","ANTOINE      ","1974-10-02","148002X",null,null,null,null,null,null,null,null,null,null,null,null,null,null,null,null,null,null,null,null,null,null,null,"OK",13355,"OUI"]
[326,"GRAVELINES","DUREZ","CHRISTOPHE   ","1963-06-22","148362N",null,null,null,null,null,null,null,null,null,null,null,null,null,null,null,null,null,null,null,null,null,null,null,"OK",13355,"OUI"]
[327,"GRAVELINES","ESTERMANS           ","BERNARD      ","1943-07-12","138943Z",12,"R3",1.7150000000000001,null,"*",null,null,null,null,null,12,"R1",1.202247191011236,null,"*",12,"N3",0.39534883720930236,null,"*",null,null,null,"OK",13355,"OUI"]
[328,"GRAVELINES","FOURNIER André",null,null,null,12,"R4",0.74624999999999997,null,"*",null,null,null,null,null,12,"R2",0.550561797752809,null,"*",12,"R1",0.17906976744186046,null,null,null,null,null,"",13355]
[329,"GRAVELINES","GREMAIN             ","GINO         ","1969-05-31","017226O",12,"N3",8.411249999999999,null,"*",12,"N2 47/2",4.3739999999999997,null,null,12,"N1",2.19,null,null,12,"N1",0.751,null,"*",null,null,null,"OK",13355,"OUI"]
[330,"GRAVELINES","GREMAIN             ","SOPHIE       ","1983-06-06","133130K",9,"R4",0.72749999999999992,null,"*",null,null,null,null,null,9,"R2",0.4044943820224719,null,"*",8,"R2",0.13953488372093023,null,"*",null,null,null,"OK",13355,"OUI"]
[331,"GRAVELINES","GRISELIN            ","FRANC        ","1938-07-23","017056A",null,null,null,null,null,null,null,null,null,null,null,null,null,null,null,null,null,null,null,null,null,null,null,"OK",13355,"OUI"]
[332,"GRAVELINES","GRISELIN            ","PHILIPPE     ","1961-09-14","102981V",8,"N3",8.4074999999999989,null,"*",12,"N2 47/2",5.9610000000000003,null,"*",12,"N1",2.95,null,"*",12,"N2",0.57299999999999995,null,"*",null,null,null,"OK",13355,"OUI"]
[333,"GRAVELINES","HARLAY              ","HERVE        ","1981-07-23","124479R",12,"R3",1.46875,null,"*",null,null,null,null,null,12,"R2",0.5730337078651685,null,"*",null,null,null,null,null,null,null,null,"OK",13355,"OUI"]
[334,"GRAVELINES","HERREBRECHT         ","ERIAN        ","2003-05-19","146733P",null,null,null,null,null,null,null,null,null,null,null,null,null,null,null,null,null,null,null,null,null,null,null,"OK",13355,"OUI"]
[335,"GRAVELINES","HERREBRECHT         ","THIERRY      ","1974-09-27","017224M",null,null,null,null,null,null,null,null,null,null,null,null,null,null,null,9,"N2",0.40699999999999997,null,null,null,null,null,"OK",13355,"OUI"]
[336,"GRAVELINES","KERKHOF             ","HERVE        ","1959-01-20","136114E",12,"R1",4.9462499999999991,null,"*",12,"N3 42/2",4.5774999999999997,null,"*",12,"N3",2.101123595505618,null,"*",12,"N3",0.38953488372093026,null,"*",null,null,null,"OK",13355,"OUI"]
[337,"GRAVELINES","LANGAGNE            ","ROLAND       ","1939-02-02","017379L",null,null,null,null,null,null,null,null,null,null,null,null,null,null,null,null,null,null,null,null,null,null,null,"OK",13355,"OUI"]
[338,"GRAVELINES","LECLERCQ            ","ALAIN        ","1959-03-24","017049T",null,null,null,null,null,null,null,null,null,null,null,null,null,null,null,12,"N3",0.48372093023255813,null,"*",null,null,null,"OK",13355,"OUI"]
[339,"GRAVELINES","MANTEN              ","PAUL         ","1948-06-09","016680O",10,"R3",1.2374999999999998,null,"*",null,null,null,null,null,8,"R2",0.8764044943820225,null,"*",12,"R1",0.26511627906976748,null,"*",null,null,null,"OK",13355,"OUI"]
[340,"GRAVELINES","MERLEN              ","GUY          ","1948-06-26","146011V",null,null,null,null,null,null,null,null,null,null,null,null,null,null,null,null,null,null,null,null,null,null,null,"OK",13355,"OUI"]
[341,"GRAVELINES","MERLEN              ","MICHEL       ","1938-03-09","138942Y",null,null,null,null,null,null,null,null,null,null,null,null,null,null,null,null,null,null,null,null,null,null,null,"OK",13355,"OUI"]
[342,"GRAVELINES","MILLOIS             ","SYLVAIN      ","1950-09-18","016681P",12,"R3",1.46875,null,"*",null,null,null,null,null,12,"R2",0.7303370786516854,null,"*",12,"R2",0.21046511627906977,null,"*",null,null,null,"OK",13355,"OUI"]
[343,"GRAVELINES","MONFLIER            ","FRANCIS      ","1949-12-31","124504Q",null,null,null,null,null,null,null,null,null,null,null,null,null,null,null,null,null,null,null,null,null,null,null,"OK",13355,"OUI"]
[344,"GRAVELINES","PARISIS             ","FRANCIS      ","1945-06-02","143076Y",12,"R4",0.71624999999999994,null,"*",null,null,null,null,null,12,"R2",0.5280898876404494,null,"*",12,"R2",0.10116279069767441,null,"*",null,null,null,"OK",13355,"OUI"]
[345,"GRAVELINES","PORTEBOIS           ","JACQUES      ","1940-10-29","017125R",null,null,null,null,null,null,null,null,null,null,null,null,null,null,null,null,null,null,null,null,null,null,null,"OK",13355,"OUI"]
[346,"GRAVELINES","ROELANTS            ","FREDERIC     ","1967-11-30","016744A",null,null,null,null,null,null,null,null,null,null,null,null,null,null,null,12,"Master",1.1616279069767441,null,"*",null,null,null,"OK",13355,"OUI"]
[347,"GRAVELINES","SPOORMANS           ","MARTIN       ","1950-06-02","127718G",null,null,null,null,null,null,null,null,null,null,null,null,null,null,null,null,null,null,null,null,null,null,null,"OK",13355,"OUI"]
[348,"GRAVELINES","STOPIN              ","GILLES       ","1956-09-29","016684S",null,null,null,null,null,null,null,null,null,null,null,null,null,null,null,12,"N1",0.749,null,"*",null,null,null,"OK",13355,"OUI"]
[349,"GRAVELINES","VANDERSTRAETEN      ","MARCEL       ","1940-02-15","017124Q",null,null,null,null,null,null,null,null,null,null,null,null,null,null,null,null,null,null,null,null,null,null,null,"OK",13355,"OUI"]
[350,"GRAVELINES","VANDOMME            ","CHRISTOPHE   ","1984-07-24","147305P",null,null,null,null,null,null,null,null,null,null,null,null,null,null,null,null,null,null,null,null,null,null,null,"OK",13355,"OUI"]
[351,"GRAVELINES","VANUXEM             ","JEROME       ","1983-02-15","016993P",null,null,null,null,null,12,"N2 47/2",5.125,null,"*",12,"N1",3.21,null,"*",10,"N1",0.74099999999999999,null,"*",null,null,null,"OK",13355,"OUI"]
[352,"GRAVELINES","VERMERSCH           ","FRANCIS      ","1971-04-07","016958G",12,"N1",15.935,null,"*",null,null,null,null,null,11,"N1",2.77,null,"*",10,"N1",0.502,null,null,null,null,null,"OK",13355,"OUI"]
[353,"GRAVELINES","VITSE               ","LOUIS        ","1947-02-16","017048S",8,"R1",4.5949999999999998,null,"*",8,"R1 42/2",3.2924999999999995,null,"*",null,null,null,null,null,null,null,null,null,null,null,null,null,"OK",13355,"OUI"]
[354,"GRAVELINES","VITSE               ","MARC         ","1973-07-04","145531J",null,null,null,null,null,null,null,null,null,null,null,null,null,null,null,12,"N2",0.51,null,"*",null,null,null,"OK",13355,"OUI"]
[355,"GRAVELINES","WASYLYSZYN          ","JEAN PIERRE  ","1948-10-10","016685T",12,"R3",1.2424999999999999,null,"*",null,null,null,null,null,12,"R1",1.0112359550561798,null,"*",12,"R1",0.23139534883720933,null,null,null,null,null,"OK",13355,"OUI"]
[356,"HOUPLINES","AUREAU Alain",null,null,null,8,"R3",1.5999999999999999,null,"*",null,null,null,null,null,8,"R2",0.8539325842696629,null,"*",null,null,null,null,null,null,null,null,"",13231]
[357,"HOUPLINES","BERTELOOT           ","PHILIPPE     ","1966-07-12","017058C",11,"R3",1.9524999999999999,null,"*",null,null,null,null,null,11,"R1",1.2134831460674158,null,"*",null,null,null,null,null,null,null,null,"OK",13231,"OUI"]
[358,"HOUPLINES","DECLERCQ Bernard",null,null,null,11,"R3",1.2974999999999999,null,"*",null,null,null,null,null,10,"R2",0.93258426966292129,null,"*",10,"R2",0.24302325581395348,null,"*",null,null,null,"",13231]
[359,"HOUPLINES","DELVALLE            ","FRANCIS      ","1955-12-26","017101T",null,null,null,null,null,null,null,null,null,null,null,null,null,null,null,null,null,null,null,null,null,null,null,"OK",13231,"OUI"]
[360,"HOUPLINES","DOZIER Francis",null,null,null,11,"R4",1.08375,null,"*",null,null,null,null,null,11,"R2",0.61797752808988771,null,"*",null,null,null,null,null,null,null,null,"",13231]
[361,"HOUPLINES","DRUELLE David",null,null,null,10,"R4",1.1637500000000001,null,"*",null,null,null,null,null,null,null,null,null,null,null,null,null,null,null,null,null,null,"",13231]
[362,"HOUPLINES","DUFOUR              ","ERIC         ","1968-04-16","016854G",12,"R2",3.5262500000000001,null,"*",10,"N3 42/2",5.0162499999999994,null,"*",9,"R1",1.6404494382022472,null,"*",null,null,null,null,null,null,null,null,"OK",13231,"OUI"]
[363,"HOUPLINES","LINARES Roberto",null,null,null,8,"R3",1.9375,null,"*",null,null,null,null,null,null,null,null,null,null,null,null,null,null,null,null,null,null,"",13231]
[364,"HOUPLINES","MASO STEPHANE",null,null,null,12,"R3",1.4037499999999998,null,"*",null,null,null,null,null,null,null,null,null,null,9,"R1",0.25,null,"*",null,null,null,"",13231]
[365,"HOUPLINES","PILATE Bernard",null,null,null,10,"R3",1.7237499999999999,null,"*",null,null,null,null,null,null,null,null,null,null,null,null,null,null,null,null,null,null,"",13231]
[366,"HOUPLINES","QUESQUE Joel",null,null,null,null,null,null,null,null,null,null,null,null,null,null,null,null,null,null,9,"R1",0.26976744186046514,null,"*",null,null,null,"",13231]
[367,"HOUPLINES","QUETEL              ","HERVE        ","1973-06-15","017031B",12,"R3",1.79375,null,"*",10,"R1 42/2",1.8374999999999999,null,"*",11,"R1",0.88764044943820231,null,null,12,"R1",0.34534883720930232,null,"*",null,null,null,"OK",13231,"OUI"]
[368,"HOUPLINES","RAMOS José",null,null,null,11,"N3",6.1224999999999996,null,"*",8,"N2 47/2",5.5650000000000004,null,"*",10,"N3",2.5617977528089884,null,"*",null,null,null,null,null,null,null,null,"",13231]
[369,"HOUPLINES","THIEULLET           ","STEPHANE     ","1967-11-09","121434O",12,"R4",1.17,null,"*",null,null,null,null,null,11,"R1",1.0449438202247192,null,"*",12,"R1",0.2930232558139535,null,"*",null,null,null,"OK",13231,"OUI"]
[370,"HOUPLINES","TURBIEZ Pascal",null,null,null,8,"R4",1.0762499999999999,null,"*",null,null,null,null,null,9,"R2",0.5168539325842697,null,"*",null,null,null,null,null,null,null,null,"",13231]
[371,"HOUPLINES","VANDENDRIESSCHE     ","FREDERIC     ","1969-01-21","136019N",12,"R4",1.1712499999999999,null,"*",null,null,null,null,null,null,null,null,null,null,10,"N3",0.36627906976744184,null,"*",null,null,null,"OK",13231,"OUI"]
[372,"HOUPLINES","VANHOUTTE           ","LAURENT      ","1968-05-13","124446K",9,"R4",0.76124999999999998,null,"*",null,null,null,null,null,null,null,null,null,null,null,null,null,null,null,null,null,null,"OK",13231,"OUI"]
[373,"HOUPLINES","VANKELST Philippe",null,null,null,10,"R4",0.8125,null,"*",null,null,null,null,null,null,null,null,null,null,null,null,null,null,null,null,null,null,"",13231]
[374,"HOUPLINES","VANTHOURNOUT        ","PASCAL       ","1956-08-06","016608U",12,"R3",2.085,null,"*",null,null,null,null,null,12,"R1",1.292134831460674,null,"*",null,null,null,null,null,null,null,null,"OK",13231,"OUI"]
[375,"HOUPLINES","WACQUET             ","PAUL         ","1929-12-12","016857J",12,"R3",1.70875,null,"*",null,null,null,null,null,11,"R1",1.0898876404494382,null,"*",10,"N3",0.40581395348837207,null,"*",null,null,null,"OK",13231,"OUI"]
[376,"HOUPLINES","WILLEM              ","LOIC         ","1992-02-08","124427R",8,"R3",1.6937499999999999,null,"*",null,null,null,null,null,8,"R1",1.0224719101123596,null,"*",null,null,null,null,null,null,null,null,"OK",13231,"OUI"]
[377,"RONCHIN","ALLORGE             ","ROGER        ","1934-03-24","017071P",null,null,null,null,null,null,null,null,null,null,null,null,null,null,null,null,null,null,null,null,null,null,null,"OK",13240,"OUI"]
[378,"RONCHIN","BARATTE             ","JEAN PIERRE  ","1943-09-23","146749F",null,null,null,null,null,null,null,null,null,null,null,null,null,null,null,null,null,null,null,null,null,null,null,"OK",13240,"OUI"]
[379,"RONCHIN","BEAUVOIS            ","DOMINIQUE    ","1955-12-08","016626M",null,null,null,null,null,null,null,null,null,null,null,null,null,null,null,null,null,null,null,null,null,null,null,"OK",13240,"OUI"]
[380,"RONCHIN","BELLENS             ","ANTOINE      ","1996-12-11","131071F",12,"R4",0.53749999999999998,null,"*",null,null,null,null,null,null,null,null,null,null,null,null,null,null,null,null,null,null,"OK",13240,"OUI"]
[381,"RONCHIN","BELLENS             ","AURORE       ","1992-04-29","114155P",12,"R2",3.0412499999999998,null,"*",null,null,null,null,null,12,"R1",1.2471910112359552,null,"*",11,"R2",0.18837209302325583,null,"*",null,null,null,"OK",13240,"OUI"]
[382,"RONCHIN","BELLENS             ","FABRICE      ","1970-05-06","016955D",12,"R2",3.1912499999999997,null,"*",null,null,null,null,null,12,"R1",1.4719101123595506,null,"*",null,null,null,null,null,null,null,null,"OK",13240,"OUI"]
[383,"RONCHIN","BELLENS             ","LAURENCE     ","1970-04-12","121445Z",11,"R4",0.36624999999999996,null,"*",null,null,null,null,null,null,null,null,null,null,null,null,null,null,null,null,null,null,"OK",13240,"OUI"]
[384,"RONCHIN","BERRIER             ","JEAN PIERRE  ","1956-07-21","129051N",12,"N3",12.494999999999999,null,"*",10,"N2 47/2",8.07,null,"*",11,"N1",2.38,null,"*",12,"N3",0.4941860465116279,null,"*",null,null,null,"OK",13240,"OUI"]
[385,"RONCHIN","BOUREL              ","ALFRED       ","1934-12-11","121447B",null,null,null,null,null,null,null,null,null,null,null,null,null,null,null,null,null,null,null,null,null,null,null,"OK",13240,"OUI"]
[386,"RONCHIN","BROUX               ","JEAN MARC    ","1964-02-18","110480G",null,null,null,null,null,null,null,null,null,null,null,null,null,null,null,null,null,null,null,null,null,null,null,"OK",13240,"OUI"]
[387,"RONCHIN","BRUNNEVALLE         ","JEAN PIERRE  ","1947-07-26","143930U",null,null,null,null,null,null,null,null,null,null,null,null,null,null,null,12,"R1",0.21627906976744185,null,null,null,null,null,"OK",13240,"OUI"]
[388,"RONCHIN","BULTHEEL","LAURENT      ","1963-04-19","016884K",null,null,null,null,null,null,null,null,null,null,null,null,null,null,null,null,null,null,null,null,null,null,null,"OK",13240,"OUI"]
[389,"RONCHIN","CALLEWAERT          ","ALEXIS       ","1995-06-08","136140E",null,null,null,null,null,null,null,null,null,null,null,null,null,null,null,null,null,null,null,null,null,null,null,"OK",13240,"OUI"]
[390,"RONCHIN","CARDINAS            ","DAVID        ","1972-04-04","147255K",null,null,null,null,null,null,null,null,null,null,null,null,null,null,null,null,null,null,null,null,null,null,null,"OK",13240,"OUI"]
[391,"RONCHIN","CARON               ","ANTONY       ","1991-10-06","133085R",11,"R2",2.75,null,"*",null,null,null,null,null,null,null,null,null,null,12,"N2",0.46500000000000002,null,"*",null,null,null,"OK",13240]
[392,"RONCHIN","CARON Doriane",null,null,"133279D",8,"R4",0.28999999999999998,null,"*",null,null,null,null,null,null,null,null,null,null,null,null,null,null,null,null,null,null,"",13240,"OUI"]
[393,"RONCHIN","CARTIGNY            ","JEAN LOUIS   ","1940-02-06","016897X",null,null,null,null,null,null,null,null,null,null,null,null,null,null,null,null,null,null,null,null,null,null,null,"OK",13240,"OUI"]
[394,"RONCHIN","CHARVOZ             ","LUDOVIC      ","1981-06-08","141340E",12,"R4",1.1312499999999999,null,"*",null,null,null,null,null,null,null,null,null,null,null,null,null,null,null,null,null,null,"OK",13240,"OUI"]
[395,"RONCHIN","DA SILVA            ","MICHEL       ","1954-02-15","102975P",12,"R3",1.75875,null,"*",null,null,null,null,null,9,"R1",1.0561797752808988,null,"*",11,"N3",0.36744186046511629,null,"*",null,null,null,"OK",13240]
[396,"RONCHIN","DE MUYNCK Daniel",null,null,null,11,"R4",1.1074999999999999,null,"*",null,null,null,null,null,null,null,null,null,null,null,null,null,null,null,null,null,null,"",13240,"OUI"]
[397,"RONCHIN","DECLERCQ            ","DIDIER       ","1956-10-11","133148C",null,null,null,null,null,null,null,null,null,null,null,null,null,null,null,null,null,null,null,null,null,null,null,"OK",13240,"OUI"]
[398,"RONCHIN","DEGUERMONT          ","MICKAEL      ","1973-04-23","143931V",null,null,null,null,null,null,null,null,null,null,null,null,null,null,null,null,null,null,null,null,null,null,null,"OK",13240,"OUI"]
[399,"RONCHIN","DELGRANGE           ","MICHEL       ","1953-07-24","124458W",12,"R2",2.3412500000000001,null,"*",null,null,null,null,null,null,null,null,null,null,null,null,null,null,null,null,null,null,"OK",13240,"OUI"]
[400,"RONCHIN","DELGRANGE           ","RENE         ","1928-05-21","016629P",12,"R4",0.84875,null,"*",null,null,null,null,null,12,"R2",0.47191011235955055,null,"*",null,null,null,null,null,null,null,null,"OK",13240]
[401,"RONCHIN","DEROUCK Julien",null,null,null,10,"R4",0.44999999999999996,null,"*",null,null,null,null,null,null,null,null,null,null,null,null,null,null,null,null,null,null,"",13240]
[402,"RONCHIN","DERVEAUX Paul",null,null,null,null,null,null,null,null,null,null,null,null,null,8,"R2",0.6067415730337079,null,"*",8,"R2",0.17093023255813952,null,"*",null,null,null,"",13240,"OUI"]
[403,"RONCHIN","DJOUBRI             ","BRAHIM       ","1958-12-03","016566E",null,null,null,null,null,12,"Masters 47/2",34.570999999999998,null,"*",10,"Master",6.19,null,"*",12,"N1",0.65500000000000003,null,"*",null,null,null,"OK",13240,"OUI"]
[404,"RONCHIN","DURIEUX             ","JEREMY       ","1985-11-24","136796K",null,null,null,null,null,null,null,null,null,null,null,null,null,null,null,null,null,null,null,null,null,null,null,"OK",13240,"OUI"]
[405,"RONCHIN","DURIN               ","RENE         ","1942-07-16","016930E",null,null,null,null,null,null,null,null,null,null,null,null,null,null,null,null,null,null,null,null,null,null,null,"OK",13240,"OUI"]
[406,"RONCHIN","DUTOIT              ","ETIENNE      ","1977-08-27","136125P",null,null,null,null,null,null,null,null,null,null,null,null,null,null,null,null,null,null,null,null,null,null,null,"OK",13240,"OUI"]
[407,"RONCHIN","FERREIRA            ","JEAN CLAUDE  ","1947-03-06","136126Q",null,null,null,null,null,null,null,null,null,null,null,null,null,null,null,null,null,null,null,null,null,null,null,"OK",13240,"OUI"]
[408,"RONCHIN","FIEVET              ","BAPTISTE     ","1997-06-11","145784C",null,null,null,null,null,null,null,null,null,null,null,null,null,null,null,null,null,null,null,null,null,null,null,"OK",13240,"OUI"]
[409,"RONCHIN","FIEVET              ","PAUL         ","1999-09-30","145785D",null,null,null,null,null,null,null,null,null,null,null,null,null,null,null,null,null,null,null,null,null,null,null,"OK",13240,"OUI"]
[410,"RONCHIN","FIEVET              ","THIERRY      ","1967-12-18","145783B",null,null,null,null,null,null,null,null,null,null,null,null,null,null,null,null,null,null,null,null,null,null,null,"OK",13240,"OUI"]
[411,"RONCHIN","FLORENT             ","BERNARD      ","1947-12-22","016852E",12,"R2",3.6825000000000001,null,"*",12,"R1 42/2",3.2087500000000002,null,"*",12,"R1",1.1797752808988764,null,"*",null,null,null,null,null,null,null,null,"OK",13240,"OUI"]
[412,"RONCHIN","FLORENT             ","JEAN FRANCOIS","1977-11-07","016853F",12,"Master",45.179000000000002,null,"*",12,"Masters 47/2",34.491999999999997,null,"*",12,"Master",7.45,null,"*",12,"N1",0.73199999999999998,null,"*",null,null,null,"OK",13240,"OUI"]
[413,"RONCHIN","FLORENT             ","JULIEN       ","1987-05-19","017114G",12,"N1",26.238,null,"*",12,"N1 47/2",16.396000000000001,null,"*",12,"N1",2.89,null,"*",10,"N2",0.47399999999999998,null,"*",null,null,null,"OK",13240,"OUI"]
[414,"RONCHIN","FLORENT             ","SYLVAIN      ","1972-01-13","147035W",null,null,null,null,null,null,null,null,null,null,null,null,null,null,null,null,null,null,null,null,null,null,null,"OK",13240,"OUI"]
[415,"RONCHIN","FLORENTIN           ","GUY          ","1935-01-17","013131B",null,null,null,null,null,null,null,null,null,null,null,null,null,null,null,null,null,null,null,null,null,null,null,"OK",13240,"OUI"]
[416,"RONCHIN","FLORENTIN           ","MARTINE      ","1966-05-23","017139F",11,"R2",2.3624999999999998,null,"*",null,null,null,null,null,12,"R2",0.77528089887640439,null,"*",null,null,null,null,null,null,null,null,"OK",13240,"OUI"]
[417,"RONCHIN","FORZY               ","JEAN LOUIS   ","1931-06-07","102988C",null,null,null,null,null,null,null,null,null,null,null,null,null,null,null,null,null,null,null,null,null,null,null,"OK",13240,"OUI"]
[418,"RONCHIN","GEVAS               ","JACQUES      ","1940-06-06","121441V",10,"R3",1.3387499999999999,null,"*",null,null,null,null,null,12,"R2",0.89887640449438211,null,"*",null,null,null,null,null,null,null,null,"OK",13240,"OUI"]
[419,"RONCHIN","GODEFROIDT          ","MICHEL       ","1946-03-22","016859L",11,"R3",1.6950000000000001,null,"*",null,null,null,null,null,12,"R1",1.146067415730337,null,"*",12,"R1",0.33139534883720928,null,"*",null,null,null,"OK",13240,"OUI"]
[420,"RONCHIN","GUIRAUD             ","JEAN PIERRE  ","1960-10-07","016956E",null,null,null,null,null,null,null,null,null,null,null,null,null,null,null,8,"N3",0.45930232558139539,null,"*",null,null,null,"OK",13240,"OUI"]
[421,"RONCHIN","JACOB               ","FRANCK       ","1967-01-18","141521D",null,null,null,null,null,null,null,null,null,null,null,null,null,null,null,null,null,null,null,null,null,null,null,"OK",13240,"OUI"]
[422,"RONCHIN","LEFRANC             ","CHRISTIAN    ","1941-06-30","141801X",11,"R2",2.6574999999999998,null,"*",null,null,null,null,null,null,null,null,null,null,null,null,null,null,null,null,null,null,"OK",13240]
[423,"RONCHIN","LESAGE Thierry",null,null,null,8,"R4",0.97375,null,"*",null,null,null,null,null,8,"R2",0.65168539325842689,null,"*",null,null,null,null,null,null,null,null,"",13240,"OUI"]
[424,"RONCHIN","LEVEQUE             ","DANIEL       ","1958-09-30","016777H",12,"N3",12.2875,null,"*",12,"N2 47/2",5.2539999999999996,null,"*",12,"N3",2.4269662921348316,null,"*",12,"N3",0.45813953488372094,null,"*",null,null,null,"OK",13240,"OUI"]
[425,"RONCHIN","LOREK               ","YOHAN        ","1981-02-11","111253Z",null,null,null,null,null,null,null,null,null,null,null,null,null,null,null,null,null,null,null,null,null,null,null,"OK",13240,"OUI"]
[426,"RONCHIN","MAC FARLANE         ","JACQUES      ","1953-03-12","016635V",10,"R2",2.9937499999999999,null,"*",null,null,null,null,null,9,"R1",1.3146067415730336,null,"*",9,"N3",0.45930232558139539,null,"*",null,null,null,"OK",13240,"OUI"]
[427,"RONCHIN","MAHELLE             ","GUILLAUME    ","1977-04-17","017243F",12,"R3",1.7199999999999998,null,"*",null,null,null,null,null,12,"R2",0.62921348314606751,null,"*",null,null,null,null,null,null,null,null,"OK",13240,"OUI"]
[428,"RONCHIN","MARIAPOULE          ","FRANCK       ","1971-08-03","138713D",null,null,null,null,null,null,null,null,null,null,null,null,null,null,null,null,null,null,null,null,null,null,null,"OK",13240,"OUI"]
[429,"RONCHIN","MARTEL              ","FRANCK       ","1972-12-07","102989D",12,"R2",2.6887499999999998,null,"*",null,null,null,null,null,null,null,null,null,null,null,null,null,null,null,null,null,null,"OK",13240,"OUI"]
[430,"RONCHIN","MASQUELIER          ","LUDOVIC      ","1966-10-29","141345J",12,"R3",1.4137499999999998,null,"*",null,null,null,null,null,null,null,null,null,null,null,null,null,null,null,null,null,null,"OK",13240,"OUI"]
[431,"RONCHIN","MASSE               ","MARC         ","1965-05-13","016636W",null,null,null,null,null,null,null,null,null,null,null,null,null,null,null,null,null,null,null,null,null,null,null,"OK",13240,"OUI"]
[432,"RONCHIN","MEERSSEMAN          ","CLAUDE       ","1951-03-31","017079X",12,"R1",4.625,null,"*",12,"N3 42/2",3.5449999999999995,null,"*",12,"N3",1.8314606741573032,null,"*",12,"N3",0.37906976744186049,null,"*",null,null,null,"OK",13240,"OUI"]
[433,"RONCHIN","MORTREUX            ","ISABELLE     ","1975-06-27","148105J",null,null,null,null,null,null,null,null,null,null,null,null,null,null,null,null,null,null,null,null,null,null,null,"OK",13240,"OUI"]
[434,"RONCHIN","MORTREUX            ","NICOLAS      ","2002-07-08","142259N",null,null,null,null,null,null,null,null,null,null,null,null,null,null,null,null,null,null,null,null,null,null,null,"OK",13240,"OUI"]
[435,"RONCHIN","MORTREUX            ","THOMAS       ","2004-06-18","145789H",null,null,null,null,null,null,null,null,null,null,null,null,null,null,null,null,null,null,null,null,null,null,null,"OK",13240,"OUI"]
[436,"RONCHIN","MOULINS             ","JEAN LOUIS   ","1958-09-14","124443H",12,"R3",1.98,null,"*",null,null,null,null,null,12,"R1",1.0561797752808988,null,"*",12,"R1",0.26976744186046514,null,"*",null,null,null,"OK",13240]
[437,"RONCHIN","NOVICK Robert",null,null,null,10,"R4",0.73874999999999991,null,"*",null,null,null,null,null,null,null,null,null,null,null,null,null,null,null,null,null,null,"",13240,"OUI"]
[438,"RONCHIN","PEROT","CLAUDE       ","1944-01-19","146750G",null,null,null,null,null,null,null,null,null,null,null,null,null,null,null,null,null,null,null,null,null,null,null,"OK",13240,"OUI"]
[439,"RONCHIN","PICAVET Jeanne marie",null,null,"145790I",null,null,null,null,null,null,null,null,null,null,null,null,null,null,null,null,null,null,null,null,null,null,null,"OK",13240,"OUI"]
[440,"RONCHIN","PICOT               ","LUC          ","1972-05-09","109152E",12,"R1",4.9124999999999996,null,"*",8,"N3 42/2",3.8762499999999998,null,"*",null,null,null,null,null,null,null,null,null,null,null,null,null,"OK",13240,"OUI"]
[441,"RONCHIN","PICOT               ","MARC         ","1950-01-20","016639Z",11,"N3",6.1112500000000001,null,"*",12,"N3 42/2",3.4549999999999996,null,null,12,"N3",2.0337078651685392,null,"*",12,"N3",0.44534883720930235,null,"*",null,null,null,"OK",13240,"OUI"]
[442,"RONCHIN","PICOT               ","MARYSE       ","1951-09-02","016821Z",10,"R4",0.57374999999999998,null,"*",null,null,null,null,null,null,null,null,null,null,null,null,null,null,null,null,null,null,"OK",13240,"OUI"]
[443,"RONCHIN","PODESZWA            ","GHISLAIN     ","1968-03-17","141348M",12,"R3",1.2825,null,"*",null,null,null,null,null,null,null,null,null,null,null,null,null,null,null,null,null,null,"OK",13240,"OUI"]
[444,"RONCHIN","POLARD              ","GILLES       ","1963-03-21","017351J",12,"N3",6.8774999999999995,null,"*",12,"N3 42/2",5.2412499999999991,null,"*",12,"R1",1.5505617977528088,null,"*",11,"N3",0.48372093023255813,null,"*",null,null,null,"OK",13240,"OUI"]
[445,"RONCHIN","POLY                ","DANIEL       ","1957-07-10","124513Z",null,null,null,null,null,null,null,null,null,null,null,null,null,null,null,null,null,null,null,null,null,null,null,"OK",13240,"OUI"]
[446,"RONCHIN","PONCHANT            ","GREGORY      ","1975-03-27","016749F",12,"N1",13.66,null,"*",12,"N2 47/2",6.88,null,"*",12,"N3",2.4269662921348316,null,"*",10,"N2",0.505,null,"*",null,null,null,"OK",13240,"OUI"]
[447,"RONCHIN","PREVOTS             ","JACQUES      ","1935-10-25","102990E",null,null,null,null,null,null,null,null,null,null,null,null,null,null,null,null,null,null,null,null,null,null,null,"OK",13240,"OUI"]
[448,"RONCHIN","QUENNELLE           ","ACHILLE      ","1937-01-16","105370S",null,null,null,null,null,null,null,null,null,null,null,null,null,null,null,null,null,null,null,null,null,null,null,"OK",13240,"OUI"]
[449,"RONCHIN","RESENDE             ","SERGE        ","1936-01-29","110596S",null,null,null,null,null,null,null,null,null,null,null,null,null,null,null,null,null,null,null,null,null,null,null,"OK",13240,"OUI"]
[450,"RONCHIN","REYNAERT            ","PIERRE       ","1971-05-26","017109B",8,"N3",6.2074999999999996,null,"*",12,"N3 42/2",5.1987499999999995,null,"*",12,"N1",1.99,null,null,12,"N2",0.55100000000000005,null,"*",null,null,null,"OK",13240,"OUI"]
[451,"RONCHIN","REYNAERT            ","ZOE          ","1997-04-21","133092Y",null,null,null,null,null,null,null,null,null,null,null,null,null,null,null,null,null,null,null,null,null,null,null,"OK",13240,"OUI"]
[452,"RONCHIN","REZZOUK             ","YOUCEF       ","1975-11-24","141358W",null,null,null,null,null,null,null,null,null,null,null,null,null,null,null,null,null,null,null,null,null,null,null,"OK",13240,"OUI"]
[453,"RONCHIN","ROUZE               ","DANIEL       ","1946-10-16","017336U",12,"R3",1.6199999999999999,null,"*",null,null,null,null,null,12,"R1",1.0224719101123596,null,"*",null,null,null,null,null,null,null,null,"OK",13240,"OUI"]
[454,"RONCHIN","SCHIANCHI           ","NICOLAS      ","1977-07-03","141522E",null,null,null,null,null,null,null,null,null,null,null,null,null,null,null,null,null,null,null,null,null,null,null,"OK",13240,"OUI"]
[455,"RONCHIN","SERRAJ              ","LOTFI        ","1991-08-05","147028N",null,null,null,null,null,null,null,null,null,null,null,null,null,null,null,null,null,null,null,null,null,null,null,"OK",13240,"OUI"]
[456,"RONCHIN","STOCKER             ","DANIEL       ","1941-02-15","017348G",12,"R2",2.7,null,"*",12,"R1 42/2",2.2749999999999999,null,"*",12,"R1",1.202247191011236,null,"*",12,"R1",0.35116279069767442,null,"*",null,null,null,"OK",13240,"OUI"]
[457,"RONCHIN","SYNQUINTYN          ","DAVE         ","1975-07-09","147029P",null,null,null,null,null,null,null,null,null,null,null,null,null,null,null,null,null,null,null,null,null,null,null,"OK",13240,"OUI"]
[458,"RONCHIN","TAFFIN              ","EMMANUEL     ","1970-08-20","114159T",12,"N3",8.5824999999999996,null,"*",12,"N2 47/2",5.2130000000000001,null,"*",12,"N3",1.898876404494382,null,"*",12,"N3",0.42558139534883721,null,"*",null,null,null,"OK",13240,"OUI"]
[459,"RONCHIN","TARGIE              ","GEOFFREY     ","1977-07-26","131234M",null,null,null,null,null,null,null,null,null,null,null,null,null,null,null,null,null,null,null,null,null,null,null,"OK",13240,"OUI"]
[460,"RONCHIN","TATULA              ","OLIVIER      ","1973-06-21","143936A",null,null,null,null,null,null,null,null,null,null,null,null,null,null,null,null,null,null,null,null,null,null,null,"OK",13240,"OUI"]
[461,"RONCHIN","TESSON              ","DOMINIQUE    ","1960-03-09","016957F",null,null,null,null,null,null,null,null,null,null,null,null,null,null,null,null,null,null,null,null,null,null,null,"OK",13240,"OUI"]
[462,"RONCHIN","VAN GOETHEM         ","ANDRE        ","1946-07-06","133152G",null,null,null,null,null,null,null,null,null,null,null,null,null,null,null,null,null,null,null,null,null,null,null,"OK",13240,"OUI"]
[463,"RONCHIN","VANHOUTTE           ","ROLAND       ","1949-07-13","147031R",null,null,null,null,null,null,null,null,null,null,null,null,null,null,null,null,null,null,null,null,null,null,null,"OK",13240,"OUI"]
[464,"RONCHIN","VANHOUTTE           ","SEBASTIEN    ","1978-05-06","147033T",null,null,null,null,null,null,null,null,null,null,null,null,null,null,null,null,null,null,null,null,null,null,null,"OK",13240,"OUI"]
[465,"RONCHIN","VILLIERS            ","BERNARD      ","1966-04-02","014334I",null,null,null,null,null,12,"Masters 47/2",20.681999999999999,null,"*",12,"Master",7.88,null,"*",12,"Master",1.1313953488372093,null,"*",null,null,null,"OK",13240,"OUI"]
[466,"RONCHIN","VINCENT             ","LUC          ","1961-02-11","133278C",null,null,null,null,null,null,null,null,null,null,null,null,null,null,null,null,null,null,null,null,null,null,null,"OK",13240,"OUI"]
[467,"RONCHIN","VINCENT             ","NIEL         ","2000-07-04","138716G",null,null,null,null,null,null,null,null,null,null,null,null,null,null,null,null,null,null,null,null,null,null,null,"OK",13240,"OUI"]
[468,"RONCHIN","WELSCHBILLIG        ","THOMAS       ","1995-04-03","138718I",null,null,null,null,null,null,null,null,null,null,null,null,null,null,null,null,null,null,null,null,null,null,null,"OK",13360,"OUI"]
[469,"RONCHIN","WILLEM              ","RICHARD      ","1949-11-07","138354I",null,null,null,null,null,null,null,null,null,null,null,null,null,null,null,null,null,null,null,null,null,null,null,"OK",13360,"OUI"]
[470,"ST POL SUR MER","BATAILLE            ","MICHEL       ","1938-08-30","016643D",9,"R3",1.6912499999999999,null,"*",null,null,null,null,null,8,"R2",0.9550561797752809,null,"*",8,"R2",0.23604651162790699,null,"*",null,null,null,"OK",13360,"OUI"]
[471,"ST POL SUR MER","BERNAL              ","MANUEL       ","1939-09-03","017389V",null,null,null,null,null,null,null,null,null,null,null,null,null,null,null,null,null,null,null,null,null,null,null,"OK",13360,"OUI"]
[472,"ST POL SUR MER","BLANCHON            ","CLAUDE       ","1934-11-18","125570Q",null,null,null,null,null,null,null,null,null,null,null,null,null,null,null,null,null,null,null,null,null,null,null,"OK",13360,"OUI"]
[473,"ST POL SUR MER","BOUCHART            ","CHRISTOPHE   ","1966-02-18","016693B",9,"R2",2.7562500000000001,null,"*",null,null,null,null,null,11,"R1",1.3033707865168538,null,"*",9,"N3",0.37674418604651166,null,"*",null,null,null,"OK",13360,"OUI"]
[474,"ST POL SUR MER","BOURET              ","JACKIE       ","1935-10-07","103033V",null,null,null,null,null,null,null,null,null,null,null,null,null,null,null,null,null,null,null,null,null,null,null,"OK",13360,"OUI"]
[475,"ST POL SUR MER","COMBES              ","MARTIAL      ","1933-02-01","016790U",null,null,null,null,null,null,null,null,null,null,null,null,null,null,null,null,null,null,null,null,null,null,null,"OK",13360,"OUI"]
[476,"ST POL SUR MER","DEMAZIERES          ","DAVID        ","1974-03-17","016939N",null,null,null,null,null,12,"N3 42/2",4.7237499999999999,null,"*",8,"N3",2.1460674157303368,null,"*",null,null,null,null,null,null,null,null,"OK",13360,"OUI"]
[477,"ST POL SUR MER","DESMAZIERES         ","CECILE       ","1972-06-21","017004A",null,null,null,null,null,null,null,null,null,null,null,null,null,null,null,null,null,null,null,null,null,null,null,"OK",13360]
[478,"ST POL SUR MER","FRADET              ","NOEL         ","1938-09-04","016695D",12,"R2",2.7374999999999998,null,"*",12,"R1 42/2",1.9012499999999999,null,"*",12,"R1",1.0449438202247192,null,"*",12,"R1",0.2686046511627907,null,"*",null,null,null,"OK",13360,"OUI"]
[479,"ST POL SUR MER","FRADET David",null,null,null,9,"N3",6.0624999999999991,null,"*",null,null,null,null,null,9,"R1",1.6179775280898876,null,"*",10,"N2",0.41099999999999998,null,null,null,null,null,"",13360,"OUI"]
[480,"ST POL SUR MER","HUYGHE              ","CLAUDE       ","1969-01-16","138374C",12,"R2",3.1662499999999998,null,"*",12,"R1 42/2",2.8312499999999998,null,"*",12,"R1",1.4044943820224718,null,"*",null,null,null,null,null,null,null,null,"OK",13360,"OUI"]
[481,"ST POL SUR MER","LEMATRE             ","ALEXIS       ","1995-07-01","133123D",10,"R3",1.4312499999999999,null,"*",null,null,null,null,null,null,null,null,null,null,null,null,null,null,null,null,null,null,"OK",13360]
[482,"ST POL SUR MER","LEMATRE             ","JEREMY       ","1988-08-18","127735X",10,"R2",2.3424999999999998,null,"*",null,null,null,null,null,10,"R1",1.2471910112359552,null,"*",10,"N3",0.43023255813953487,null,"*",null,null,null,"OK",13360]
[483,"ST POL SUR MER","LEMATRE André",null,null,null,11,"R3",1.6375,null,"*",null,null,null,null,null,null,null,null,null,null,10,"N3",0.3604651162790698,null,"*",null,null,null,"",13360,"OUI"]
[484,"ST POL SUR MER","LEMATRE Grégory",null,null,null,8,"R2",2.38,null,"*",null,null,null,null,null,9,"R1",1.4719101123595506,null,"*",8,"N3",0.49767441860465117,null,"*",null,null,null,"",13360,"OUI"]
[485,"ST POL SUR MER","POULEYN             ","ANDRE        ","1955-02-23","016665Z",12,"R2",3.2199999999999998,null,"*",10,"R1 42/2",2.9849999999999999,null,"*",12,"R1",1.202247191011236,null,"*",12,"N3",0.37441860465116283,null,"*",null,null,null,"OK",13360,"OUI"]
[486,"ST POL SUR MER","RAMON               ","ROBERT       ","1919-12-14","016847Z",12,"R3",0.93374999999999997,null,null,null,null,null,null,null,12,"R2",0.7415730337078652,null,"*",12,"R2",0.21860465116279071,null,"*",null,null,null,"OK",13360,"OUI"]
[487,"ST POL SUR MER","SAINT MAXENT        ","STEPHANE     ","1958-10-28","127733V",12,"R4",0.95874999999999999,null,"*",null,null,null,null,null,null,null,null,null,null,10,"R2",0.13953488372093023,null,"*",null,null,null,"OK",13360,"OUI"]
[488,"ST POL SUR MER","SAMIEZ              ","MICHEL       ","1952-01-05","136342Y",null,null,null,null,null,null,null,null,null,null,null,null,null,null,null,null,null,null,null,null,null,null,null,"OK",13360,"OUI"]
[489,"ST POL SUR MER","VEREECQUE           ","BERNARD      ","1956-06-22","116590G",12,"R4",0.97624999999999995,null,"*",null,null,null,null,null,12,"R2",0.5730337078651685,null,"*",10,"R2",0.16744186046511628,null,"*",null,null,null,"OK",13360,"OUI"]
[490,"ST POL SUR MER","VEREECQUE           ","LUDOVIC      ","1980-01-21","017231T",10,"R2",3.0137499999999999,null,"*",10,"R1 42/2",2.4724999999999997,null,"*",10,"R1",1.6292134831460674,null,"*",9,"N3",0.34651162790697676,null,null,null,null,null,"OK",13360]
[491,"ST POL SUR MER","WADOUX              ","JEAN FRANCOIS","1940-03-11","016793X",12,"R3",1.5787499999999999,null,"*",null,null,null,null,null,12,"R2",0.6966292134831461,null,"*",null,null,null,null,null,null,null,null,"OK",13236,"OUI"]
[492,"ST POL SUR MER","WEISBECKER Jean-Claude",null,null,null,11,"R4",0.94374999999999998,null,"*",null,null,null,null,null,11,"R2",0.7415730337078652,null,"*",null,null,null,null,null,null,null,null,"",13236,"OUI"]
[493,"VILLENEUVE D ASCQ","ACHERE              ","ANDRE        ","1951-09-17","124428S",null,null,null,null,null,null,null,null,null,null,null,null,null,null,null,null,null,null,null,null,null,null,null,"OK",13236,"OUI"]
[494,"VILLENEUVE D ASCQ","ACHERE              ","GEORGES      ","1949-09-18","136455H",null,null,null,null,null,null,null,null,null,null,null,null,null,null,null,null,null,null,null,null,null,null,null,"OK",13236,"OUI"]
[495,"VILLENEUVE D ASCQ","BENINCA             ","JEAN PIERRE  ","1941-02-01","121725T",12,"R3",1.2237499999999999,null,"*",null,null,null,null,null,12,"R2",0.5730337078651685,null,"*",12,"R2",0.24534883720930231,null,"*",null,null,null,"OK",13236,"OUI"]
[496,"VILLENEUVE D ASCQ","BOUILLET            ","ANTOINE      ","1981-02-14","105367P",10,"R2",2.4162499999999998,null,"*",null,null,null,null,null,10,"R1",1.258426966292135,null,"*",12,"N3",0.49651162790697673,null,"*",null,null,null,"OK",13236,"OUI"]
[497,"VILLENEUVE D ASCQ","BOUILLET            ","PIERRE       ","1949-07-20","016927B",10,"R4",0.79999999999999993,null,"*",null,null,null,null,null,9,"R1",0.8539325842696629,null,null,null,null,null,null,null,null,null,null,"OK",13236,"OUI"]
[498,"VILLENEUVE D ASCQ","BOURDEAUDUCQ        ","ROSE MARIE   ","1950-01-19","146464G",null,null,null,null,null,null,null,null,null,null,null,null,null,null,null,null,null,null,null,null,null,null,null,"OK",13236,"OUI"]
[499,"VILLENEUVE D ASCQ","BOUVART             ","PIERRE       ","1948-09-18","146927D",null,null,null,null,null,null,null,null,null,null,null,null,null,null,null,null,null,null,null,null,null,null,null,"OK",13236]
[500,"VILLENEUVE D ASCQ","BRUYERE             ","MICHEL       ","1954-03-12","114150K",null,null,null,null,null,null,null,null,null,null,null,null,null,null,null,12,"N3",0.38372093023255816,null,"*",null,null,null,"OK",13236,"OUI"]
[501,"VILLENEUVE D ASCQ","CHAIB Hassène",null,null,null,8,"R2",2.9325000000000001,null,"*",null,null,null,null,null,8,"R1",1.2247191011235956,null,"*",8,"N3",0.41860465116279066,null,"*",null,null,null,"",13236,"OUI"]
[502,"VILLENEUVE D ASCQ","D ANGELO            ","ALBERTO      ","1951-09-25","138705V",12,"R3",1.9324999999999999,null,"*",null,null,null,null,null,12,"R1",1.1910112359550562,null,"*",12,"R1",0.32441860465116285,null,"*",null,null,null,"OK",13236,"OUI"]
[503,"VILLENEUVE D ASCQ","DASSONVILLE         ","GERARD       ","1942-06-19","127678S",12,"R4",0.65874999999999995,null,"*",null,null,null,null,null,null,null,null,null,null,null,null,null,null,null,null,null,null,"OK",13236,"OUI"]
[504,"VILLENEUVE D ASCQ","DAUCHEZ             ","JEAN FRANCOIS","1973-06-06","127690E",null,null,null,null,null,null,null,null,null,null,null,null,null,null,null,null,null,null,null,null,null,null,null,"OK",13236,"OUI"]
[505,"VILLENEUVE D ASCQ","DEGREEF             ","PATRICE      ","1970-02-21","124447L",10,"R2",2.1937499999999996,null,null,null,null,null,null,null,12,"R1",1.258426966292135,null,"*",10,"N3",0.36162790697674418,null,"*",null,null,null,"OK",13236,"OUI"]
[506,"VILLENEUVE D ASCQ","DELION              ","PATRICK      ","1949-01-16","016612Y",12,"R3",2.0999999999999996,null,"*",11,"R1 42/2",2.2537499999999997,null,"*",null,null,null,null,null,12,"R1",0.29418604651162794,null,"*",null,null,null,"OK",13236,"OUI"]
[507,"VILLENEUVE D ASCQ","DELRUE              ","ANDRE        ","1958-07-31","105710U",12,"R3",1.7949999999999999,null,"*",null,null,null,null,null,12,"R1",1.0561797752808988,null,"*",12,"R1",0.27558139534883719,null,"*",null,null,null,"OK",13236,"OUI"]
[508,"VILLENEUVE D ASCQ","DEMORY              ","LAURENT      ","1900-01-01","145643R",null,null,null,null,null,null,null,null,null,null,null,null,null,null,null,null,null,null,null,null,null,null,null,"OK",13236,"OUI"]
[509,"VILLENEUVE D ASCQ","DENNEAU             ","DANIEL       ","1946-04-13","146928E",null,null,null,null,null,null,null,null,null,null,null,null,null,null,null,null,null,null,null,null,null,null,null,"OK",13236,"OUI"]
[510,"VILLENEUVE D ASCQ","DEPREZ              ","JEAN         ","1935-07-26","017420A",12,"R3",1.54125,null,"*",11,"R1 42/2",1.7499999999999998,null,"*",12,"R2",0.76404494382022481,null,"*",11,"R2",0.21046511627906977,null,"*",null,null,null,"OK",13236,"OUI"]
[511,"VILLENEUVE D ASCQ","DESTAERKE           ","JEAN         ","1934-12-26","134161B",12,"R3",1.7799999999999998,null,"*",null,null,null,null,null,12,"R2",0.7303370786516854,null,"*",11,"R2",0.22441860465116281,null,"*",null,null,null,"OK",13236,"OUI"]
[512,"VILLENEUVE D ASCQ","DOMPIERRE           ","BENOIT       ","1984-09-20","146945Y",null,null,null,null,null,null,null,null,null,null,null,null,null,null,null,null,null,null,null,null,null,null,null,"OK",13236,"OUI"]
[513,"VILLENEUVE D ASCQ","DUTILLEUL           ","ALBERT       ","1952-05-23","146509Z",null,null,null,null,null,null,null,null,null,null,null,null,null,null,null,null,null,null,null,null,null,null,null,"OK",13236,"OUI"]
[514,"VILLENEUVE D ASCQ","FALSE","FRANCK       ","1974-09-24","016907H",12,"R2",3.57125,null,"*",12,"R1 42/2",2.8437499999999996,null,"*",11,"R1",1.5168539325842698,null,"*",null,null,null,null,null,null,null,null,"OK",13236]
[515,"VILLENEUVE D ASCQ","FOULON              ","MICHEL       ","1946-11-25","016614A",null,null,null,null,null,null,null,null,null,null,12,"N3",2.09,null,"*",10,"N1",0.46500000000000002,null,null,null,null,null,"OK",13236,"OUI"]
[516,"VILLENEUVE D ASCQ","GAEREMYNCK          ","CLAUDE       ","1957-04-17","017000W",12,"R3",1.6762499999999998,null,"*",null,null,null,null,null,12,"R1",1.202247191011236,null,"*",12,"N3",0.36744186046511629,null,"*",null,null,null,"OK",13236,"OUI"]
[517,"VILLENEUVE D ASCQ","GENNIN Jean-Robert",null,null,null,10,"R4",0.80625000000000002,null,"*",null,null,null,null,null,10,"R2",0.4157303370786517,null,"*",10,"R2",0.19767441860465118,null,"*",null,null,null,"",13236,"OUI"]
[518,"VILLENEUVE D ASCQ","GROLLET             ","FABIEN       ","1980-12-06","110544S",12,"N3",7.286249999999999,null,"*",12,"N3 42/2",4.8374999999999995,null,"*",12,"N3",2.393258426966292,null,"*",12,"N2",0.45700000000000002,null,"*",null,null,null,"OK",13236,"OUI"]
[519,"VILLENEUVE D ASCQ","GUILLUY             ","JEAN RENE    ","2001-08-08","146929F",null,null,null,null,null,null,null,null,null,null,null,null,null,null,null,null,null,null,null,null,null,null,null,"OK",13236]
[520,"VILLENEUVE D ASCQ","HANTSON             ","THIERRY      ","1997-06-16","146930G",null,null,null,null,null,null,null,null,null,null,null,null,null,null,null,null,null,null,null,null,null,null,null,"OK",13236]
[521,"VILLENEUVE D ASCQ","HUYGHE              ","JEAN CLAUDE  ","1954-06-21","016633T",12,"N1",13.914999999999999,null,"*",12,"N2 47/2",8.1020000000000003,null,"*",12,"N1",2.2000000000000002,null,null,10,"N2",0.52,null,"*",null,null,null,"OK",13236,"OUI"]
[522,"VILLENEUVE D ASCQ","HUYGHE Jean-Paul",null,null,null,8,"R1",4.0462499999999997,null,"*",8,"R1 42/2",3.2712499999999998,null,"*",8,"R1",1.3932584269662922,null,"*",null,null,null,null,null,null,null,null,"",13236,"OUI"]
[523,"VILLENEUVE D ASCQ","LAPORTE Jean-François",null,null,"016953B",null,null,null,null,null,null,null,null,null,null,10,"N3",1.8089887640449438,null,"*",12,"N2",0.40600000000000003,null,null,null,null,null,"",13236,"OUI"]
[524,"VILLENEUVE D ASCQ","LE GOHEBEL          ","JACQUES      ","1961-09-19","127679T",12,"R3",1.48125,null,"*",null,null,null,null,null,12,"R2",0.89887640449438211,null,"*",12,"R1",0.20232558139534881,null,null,null,null,null,"OK",13236,"OUI"]
[525,"VILLENEUVE D ASCQ","LECROART            ","SERGE        ","1954-06-03","016925Z",12,"R3",1.73875,null,"*",null,null,null,null,null,11,"R2",0.75280898876404501,null,"*",null,null,null,null,null,null,null,null,"OK",13236,"OUI"]
[526,"VILLENEUVE D ASCQ","LOSFELD             ","RENE         ","1933-12-31","102972M",12,"R3",1.1587499999999999,null,null,null,null,null,null,null,12,"R2",0.78651685393258419,null,"*",null,null,null,null,null,null,null,null,"OK",13236,"OUI"]
[527,"VILLENEUVE D ASCQ","MAGNIEZ             ","ROLAND       ","1940-06-03","119354O",null,null,null,null,null,null,null,null,null,null,null,null,null,null,null,null,null,null,null,null,null,null,null,"OK",13236,"OUI"]
[528,"VILLENEUVE D ASCQ","MILLET              ","MICHEL       ","1948-04-26","017423D",null,null,null,null,null,null,null,null,null,null,12,"N1",2.4,null,"*",12,"N1",0.59599999999999997,null,null,null,null,null,"OK",13236,"OUI"]
[529,"VILLENEUVE D ASCQ","MISSIAEN            ","JEAN LUC     ","1952-08-26","016616C",10,"N3",7.9337499999999999,null,"*",10,"N3 42/2",5.1149999999999993,null,"*",10,"N3",2.0674157303370788,null,"*",10,"N3",0.49302325581395351,null,"*",null,null,null,"OK",13236,"OUI"]
[530,"VILLENEUVE D ASCQ","MORTREUX            ","PATRICK      ","1960-12-30","016816U",12,"R1",4.0250000000000004,null,"*",12,"R1 42/2",3.1349999999999998,null,"*",12,"R1",1.4157303370786516,null,"*",12,"N3",0.44302325581395352,null,"*",null,null,null,"OK",13236,"OUI"]
[531,"VILLENEUVE D ASCQ","PAQUET              ","YVES         ","1934-08-14","145642Q",null,null,null,null,null,null,null,null,null,null,null,null,null,null,null,null,null,null,null,null,null,null,null,"OK",13236,"OUI"]
[532,"VILLENEUVE D ASCQ","PIC                 ","LORENZO      ","1998-11-23","146462E",null,null,null,null,null,null,null,null,null,null,null,null,null,null,null,null,null,null,null,null,null,null,null,"OK",13236]
[533,"VILLENEUVE D ASCQ","POLARD              ","SERGE        ","1956-03-10","102977R",12,"R3",1.5024999999999999,null,"*",null,null,null,null,null,12,"R2",0.6629213483146067,null,"*",12,"R1",0.26511627906976748,null,"*",null,null,null,"OK",13236,"OUI"]
[534,"VILLENEUVE D ASCQ","POTTEAU             ","PATRICK      ","1949-01-19","145782A",null,null,null,null,null,null,null,null,null,null,null,null,null,null,null,null,null,null,null,null,null,null,null,"OK",13236,"OUI"]
[535,"VILLENEUVE D ASCQ","RENAUX Damien",null,null,null,8,"R1",5.27,null,"*",8,"N3 42/2",4.0737499999999995,null,"*",8,"R1",1.7415730337078652,null,"*",8,"N3",0.41860465116279066,null,"*",null,null,null,"",13236,"OUI"]
[536,"VILLENEUVE D ASCQ","ROSEAU              ","DOMINIQUE    ","1960-04-11","143924O",11,"R4",0.83374999999999999,null,"*",null,null,null,null,null,null,null,null,null,null,null,null,null,null,null,null,null,null,"OK",13236]
[537,"VILLENEUVE D ASCQ","SOYEUX              ","CLEMENT      ","1996-10-18","146510A",null,null,null,null,null,null,null,null,null,null,null,null,null,null,null,null,null,null,null,null,null,null,null,"OK",13236]
[538,"VILLENEUVE D ASCQ","STEVENS             ","MAURICE      ","1934-04-28","136456I",null,null,null,null,null,null,null,null,null,null,null,null,null,null,null,null,null,null,null,null,null,null,null,"OK",13236]
[539,"VILLENEUVE D ASCQ","TRUQUET David",null,null,null,9,"R2",2.8762500000000002,null,"*",null,null,null,null,null,null,null,null,null,null,null,null,null,null,null,null,null,null,"",13236,"OUI"]
[540,"VILLENEUVE D ASCQ","VANDENBOSSCHE Albert",null,null,null,10,"R3",1.7362499999999998,null,"*",null,null,null,null,null,10,"R1",0.75280898876404501,null,null,null,null,null,null,null,null,null,null,"",13236,"OUI"]
[541,"VILLENEUVE D ASCQ","VANDEWEGHE Frédéric",null,null,null,10,"N3",8.1349999999999998,null,"*",10,"N3 42/2",5.3624999999999998,null,"*",10,"N3",2.5280898876404496,null,"*",10,"N3",0.51395348837209298,null,"*",null,null,null,"",13236,"OUI"]
[542,"VILLENEUVE D ASCQ","VANGANSBEKE         ","GERARD       ","1951-01-01","016624K",11,"R2",2.9537499999999999,null,"*",11,"N3 42/2",2.9162500000000002,null,null,11,"R1",1.696629213483146,null,"*",11,"N3",0.47441860465116276,null,"*",null,null,null,"OK",13236,"OUI"]
[543,"VILLENEUVE D ASCQ","VANKIEKEN           ","DAVID        ","1975-01-15","016881H",12,"N1",9.5619999999999994,null,null,12,"N2 47/2",7.1059999999999999,null,"*",12,"N1",2.69,null,"*",12,"N2",0.47,null,"*",null,null,null,"OK",13236,"OUI"]
[544,"VILLENEUVE D ASCQ","VERBERT             ","ANNE CLAIRE  ","1987-02-02","146931H",null,null,null,null,null,null,null,null,null,null,null,null,null,null,null,null,null,null,null,null,null,null,null,"OK",13240,"OUI"]
[545,"VILLENEUVE D ASCQ","VERFAILLE           ","DANIEL       ","1944-06-21","124451P",10,"R3",1.2262499999999998,null,"*",null,null,null,null,null,null,null,null,null,null,null,null,null,null,null,null,null,null,"OK",13240,"OUI"]
[546,"VILLENEUVE D ASCQ","VERGRIETE           ","MICHEL       ","1927-11-18","016618E",11,"R3",1.4274999999999998,null,"*",null,null,null,null,null,12,"R2",0.65168539325842689,null,"*",null,null,null,null,null,null,null,null,"OK",13355,"OUI"]
[547]
[548]
[549]
[550]
[551]
[552]
[553]
[554]
[555]
[556]
[557]
[558]
[559]
[560]
[561]
[562]
[563]
[564]
[565]
[566]
[567]
[568]
[569]
[570]
[571]
[572]
[573]
[574]
[575]
[576]
[577]
[578]
[579]
[580]
[581]
[582]
[583]
[584]
[585]
[586]
[587]
[588]
[589]
[590]
[591]
[592]
[593]
[594]
[595]
[596]
[597]
[598]